Workbook

Sheet シミュレーションシート
B14: 育 休 | D14: 取得可能期間 | J14: 最長で子の３歳の誕生日の前日まで【注】
D15: 取得回数 | J15: ①１人の子につき原則２回まで ②①に加えて、出生から57日以内に２回まで（いわゆる「産後パパ育休」）。
B17: 給与（給料及び諸手当） | J17: 休業期間中は無給（給料及び一部手当は、月途中での休業開始又は復職の場合、日割計算）
B19: 通勤手当 | J19: 月の初日から末日までの全期間にわたって通勤がない場合、当該月は不支給
B20: 期末・勤勉手当 | J20: 基準日（６月１日又は12月１日）以前６か月以内に勤務した期間がある場合に、その期間に応じて支給（期末手当は休業期間を２分の１除算。勤勉手当は休業期間を全期間除算。ただし、休業の承認期間が１か月以下の場合には、除算なし。）
AE21: 「マクロを有効」にして使用してください。
B22: 退職手当 | J22: 全日を勤務しなかった月（休職月等）を対象に、その２分の１（子の１歳の誕生日の前日の属する月までの期間は３分の１）の月数を勤続期間から除算 | AE22: 「マクロを有効」にできない場合は、「入力」シートに必要事項を入力してください。
B24: 社会保険料（共済短期掛金、厚生年金保険料、退職等年金掛金、介護掛金等） | J24: 申出により、休業期間中は免除 ※共済組合に係る掛金の免除は次のとおり ○例月給与分（①育児休業期間に月末日を含む場合又は②同一月内かつ14日間以上 の育児休業の場合 は当該月が免除） ○期末手当分（育児休業期間中に支給月の末日を含み、かつ期間が１か月と１日以 上ある場合 は当該月は免除）
B25: 育児休業手当金（共済） | J25: 子の１歳（パパママ育休プラス適用の場合は１歳2か月、保育所に入所できない場合等は最長２歳）の誕生日の前日まで、標準報酬日額の50％（休業期間が180日に達するまでの期間については67％（地方公務員共済組合法第70条の2第3項の規定により雇用保険給付相当額が上限））を支給
B40: 項目 | L40: 育休を取得しない場合 | R40: 育休を取得した場合 | X40: 差額
B42: 毎月の給与影響額 | L42: =L68 -> 176729.7273 | R42: =R68 -> 173550 | X42: =R42-L42 -> -3179.727273
B44: 期末・勤勉手当影響額 | L44: =L98 -> 2355084 | R44: =R98 -> 2355084 | X44: =R44-L44 -> 0
B46: 合計 | L46: =L42+L44 -> 2531813.727 | R46: =R42+R44 -> 2528634 | X46: =R46-L46 -> -3179.727273
B50: 育休取得期間 | I50: =IF(入力!K30>入力!AB30,"error",IF(入力!K30="","",計算シート!K6)) -> 21 | K50: 日間（ | M50: =IF(入力!K30="","",入力!K30) -> 2023-12-27 | Q50: ～ | R50: =IF(入力!AB30="","",入力!AB30) -> 2024-01-16 | V50: ） | X50: 手当金の支給対象日数
B52: 育児休業手当金支給額 | I52: 育休１～180日まで | P52: 日額 | R52: =計算シート!K28 -> 11570 | X52: =IF(入力!K30>入力!AB30,"error",IF(入力!K30="","",計算シート!K9)) -> 15
V53: 円 | AA53: 日
I54: 育休180日～ | P54: 日額 | R54: =計算シート!K33 -> 8635
V55: 円
B60: 項目 | L60: 育休を取得しない場合 | R60: 育休を取得した場合 | X60: 差額
B62: （支給額）給料・諸手当等 | L62: =計算シート!F27+計算シート!F28 -> 232592.7273 | R62: 0 | X62: =計算シート!H27+計算シート!H28 -> -232592.7273
B64: （支給額）育児休業手当金 | L64: 0 | R64: =計算シート!G29 -> 173550 | X64: =計算シート!H29 -> 173550
B66: （控除額）社会保険料 | L66: =計算シート!F30 -> -55863 | R66: =計算シート!G30 -> 0 | X66: =計算シート!H30 -> 55863
B68: 合計 | L68: =計算シート!F33 -> 176729.7273 | R68: =計算シート!G33 -> 173550 | X68: =計算シート!H33 -> -3179.727273
B70: （参考）所得税額 | L70: =計算シート!F31 -> 0 | R70: ※下記＜税金関係＞参照
B72: （参考）住民税額 | L72: =計算シート!F32 -> 0
B80: 項目 | L80: 育休を取得しない場合 | R80: 育休を取得した場合 | X80: 差額
B82: =計算シート!B37 -> 期間① 2023年6月支給時 | E82: （支給額）期末・勤勉手当金 | L82: =計算シート!F37 -> 690207 | R82: =計算シート!G37 -> 690207 | X82: =計算シート!H37 -> 0
E84: （控除額）社会保険料 | L84: =計算シート!F38 -> -101436 | R84: =計算シート!G38 -> -101436 | X84: =計算シート!H38 -> 0
B86: =計算シート!B40 -> 期間② 2023年12月支給時 | E86: （支給額）期末・勤勉手当金 | L86: =計算シート!F40 -> 690207 | R86: =計算シート!G40 -> 690207 | X86: =計算シート!H40 -> 0
E88: （控除額）社会保険料 | L88: =計算シート!F41 -> -101436 | R88: =計算シート!G41 -> -101436 | X88: =計算シート!H41 -> 0
B90: =計算シート!B43 -> 期間③ 2024年6月支給時 | E90: （支給額）期末・勤勉手当金 | L90: =計算シート!F43 -> 690207 | R90: =計算シート!G43 -> 690207 | X90: =計算シート!H43 -> 0
E92: （控除額）社会保険料 | L92: =計算シート!F44 -> -101436 | R92: =計算シート!G44 -> -101436 | X92: =計算シート!H44 -> 0
B94: =計算シート!B46 -> 期間④ 2024年12月支給時 | E94: （支給額）期末・勤勉手当金 | L94: =計算シート!F46 -> 690207 | R94: =計算シート!G46 -> 690207 | X94: =計算シート!H46 -> 0
E96: （控除額）社会保険料 | L96: =計算シート!F47 -> -101436 | R96: =計算シート!G47 -> -101436 | X96: =計算シート!H47 -> 0
B98: 合計 | L98: =計算シート!F49 -> 2355084 | R98: =計算シート!G49 -> 2355084 | X98: =計算シート!H49 -> 0
B100: （参考）所得税額（期間中の合計額） | L100: =計算シート!F50 -> 0 | R100: =計算シート!G50 -> 0 | X100: ー

Sheet 入力
A5: ○給料等支給明細書
B7: 所 属 | E7: 職員番号 | H7: 職名 | J7: 氏 名 | R7: 科目 | S7: 表 | T7: 級 | U7: 号俸 | W7: 数 | X7: 給 料 | AA7: 扶 養 | AD7: 地 域 | AG7: 住 居 | AJ7: 通 勤 | AM7: 単身赴任 | AP7: 管 理 職 | AS7: 教員特別初任給調整 | AW7: へ き 地 | BA7: 準へき地 | BD7: 定時制通信教育 | BG7: 産業教育 | BJ7: 時間外勤務管理職員特別 | BM7: 共済 | BO7: 等級 | BP7: 報酬月額
X8: 302536 | AA8: 10000 | AG8: 24500 | AS8: 4100 | BM8: 短期 | BP8: 380000 | CA8: 諸手当額（時間外勤務手当、通勤手当等を除く） | CG8: =IF(SUM(AA8,AD8,AG8,AM8,AP8,AS8,AW8,BA8,S10)>0,SUM(AA8,AD8,AG8,AM8,AP8,AS8,AW8,BA8,S10),0) -> 38600
B9: 夜間勤務 | E9: 休日勤務 | H9: 宿日直 | L9: 期末 | O9: 勤勉 | S9: 寒冷地 | W9: 舎務 | Y9: 地方指導員医学研究 | AC9: 多学年 | AF9: 夜間課程勤務 | AI9: 特殊勤務非月額 | AL9: 児童 | AO9: 報酬 | AR9: その他 | AX9: 支給計 | BB9: 減額 | BE9: 共済介護 介護保険 | BG9: 共済短期健康保険 | BJ9: 厚生年金 | BM9: 厚生
BG10: 18243 | BJ10: 34770 | BM10: 退年 | CA10: 社会保険料額 | CG10: =IF(SUM(BE10:BL10)+B12>0,SUM(BE10:BL10)+B12,0) -> 55863
B11: 共済退職等年金 | E11: 所 得 税 | I11: 住民税 | L11: 共済貸付金 | O11: 財形貯蓄 | R11: 財形年金 | U11: 財形住宅 | X11: 公宅料 | AA11: 住宅建設貸付雇用保険料 | AD11: 互助会費 | AG11: 互助会費（社 | AJ11: 互助会貸付金 | AM11: 商品代金 保険料 介護 | AP11: 積立金 | AS11: 団体保険保険 保険料 厚生 | AW11: 団体保険共済 保険料 健保 | BC11: 債権差押 | BF11: 差引支給計 | BI11: 口座振替額 | BL11: 現金支給額 | BQ11: 受領印
B12: 2850
B13: A口座 | U13: 円 | V13: Ｂ口座 | AQ13: 円 | AR13: C口座 | BM13: 円 | BN13: 年 月
A15: ○期末・勤勉手当支給明細書
B17: 所 属 | E17: 職員番号 | H17: 職名 | J17: 氏 名 | S17: 科目 | T17: 表 | U17: 級 | V17: 号俸 | X17: 数 | Y17: 給料 | AC17: 扶養 | AF17: 地域 | AI17: 算出基礎額 | AM17: 加算率 | AO17: 期末勤勉加算額 | AR17: 支給率 | AT17: 在職期間率 | AV17: 休職率 | AW17: 期 末 手 当 | BA17: 勤 勉 手 当 | BE17: 勤勉手当期間率 | BI17: 税咳率算出基礎割合 | BM17: 期末勤勉基礎加算額 | BQ17: 受領印 | CA17: 期末・勤勉手当支給時の社会保険料の金額 | CG17: =IF(SUM(L20:Y20)>0,SUM(L20:Y20),0) -> 101436
AW18: 393194 | BA18: 297013
B19: 支 給 計 | G19: 税率 | H19: 所 得 税 | L19: 共済短期 | O19: 共済厚生年金 | R19: 共済退職等年金 | V19: 共 済 介 護 | Z19: 共済貸付金 | AD19: 財形貯蓄 | AG19: 財形年金 | AK19: 財形住宅 | AO19: 互助会貸付金 | AR19: 商品代金 | AV19: 団体保険 共済 | AZ19: 積立金 （福祉・共済） | BC19: 健康保険・船員保険 | BG19: 厚 生 年 金 | BK19: 介 護 保 険 | BN19: 雇 用 保 険
L20: 33126 | O20: 63135 | R20: 5175
B21: 債権差押 | F21: 保険料
B23: A口座 | U23: 円 | V23: Ｂ口座 | AQ23: 円 | AR23: C口座 | BM23: 円 | BN23: 年 月 | BQ23: 月 日
B30: 育休開始年月日 | K30: 2023-12-27 | Q30: =IF(K30="","",TEXT(K30,"(aaa)")) -> (水) | S30: 育休終了年月日 | AB30: 2024-01-16 | AH30: =IF(AB30="","",TEXT(AB30,"(aaa)")) -> (火)

Sheet 計算シート (hidden)
B2: 育児休業 収入シミュレーション 計算シート | O2: 2021-12-02 | P2: 2022-06-02 | Q2: 2022-12-02 | R2: 2023-06-02 | S2: 2023-12-02 | T2: 2024-06-02 | U2: 2024-12-02 | V2: 2025-06-02 | W2: 2023-06-02
O3: 2022-06-01 | P3: 2022-12-01 | Q3: 2023-06-01 | R3: 2023-12-01 | S3: 2024-06-01 | T3: 2024-12-01 | U3: 2025-06-01 | V3: 2025-12-01 | W3: 2023-12-01
E5: =シミュレーションシート!C32 -> 0 | F5: =入力!K30 -> 2023-12-27 | N5: =N7-1 -> 2022-12-01
E6: =シミュレーションシート!P32 -> 0 | F6: =入力!AB30 -> 2024-01-16 | J6: 育休期間中の全日数 | K6: =IF(K7+K8<1,0,K7+K8) -> 21 | N6: 期間① | O6: 期間② | P6: 期間③ | Q6: 期間④
E7: =シミュレーションシート!C35 -> 0 | F7: =入力!BP8 -> 380000 | J7: うち、180日まで | K7: =F6-F5+1-K8 -> 21 | M7: 期間の開始日 | N7: 2022-12-02 | O7: 2023-06-02 | P7: 2023-12-02 | Q7: 2024-06-02
E8: =シミュレーションシート!P35 -> 0 | F8: =入力!X8 -> 302536 | J8: うち、181日以降 | K8: =IF(F6-F5+1-180<0,0,F6-F5+1-180) -> 0 | M8: 期間の終了日 | N8: 2023-06-01 | O8: 2023-12-01 | P8: 2024-06-01 | Q8: 2024-12-01
E9: =シミュレーションシート!C37 -> 0 | F9: =入力!CG8 -> 38600 | J9: 育休期間中の土日を除いた日数 | K9: =IF(NETWORKDAYS(F5,F6)<1,0,NETWORKDAYS(F5,F6)) -> 15 | M9: 期間の末月の末日 | N9: =EOMONTH(N8,0) -> 2023-06-30 | O9: =EOMONTH(O8,0) -> 2023-12-31 | P9: 2024-06-30 | Q9: 2024-12-31
E10: =シミュレーションシート!P37 -> 0 | F10: =入力!CG12 -> 0 | J10: うち、180日まで | K10: =K9-K11 -> 15 | M10: 期間中の土日を除いた日数 | N10: =NETWORKDAYS(N7,N8) -> 130 | O10: =NETWORKDAYS(O7,O8) -> 131 | P10: =NETWORKDAYS(P7,P8) -> 130 | Q10: =NETWORKDAYS(Q7,Q8) -> 130
E11: =シミュレーションシート!C39 -> 0 | F11: =入力!CG10*-1 -> -55863 | J11: うち、181日以降 | K11: =IF(NETWORKDAYS(K14,F6)>0,NETWORKDAYS(K14,F6),0) -> 0 | M11: 期間中の日数 | N11: =N8-N7+1 -> 182 | O11: =O8-O7+1 -> 183 | P11: =P8-P7+1 -> 183 | Q11: =Q8-Q7+1 -> 183
E12: =シミュレーションシート!P39 -> 0 | F12: =入力!E12*-1 -> 0 | J12: 育休開始から1か月後 | K12: =EDATE(F5,1)-1 -> 2024-01-26 | M12: (参照開始年月日) | N12: =MAX(N7,F5) -> 2023-12-27 | O12: =MAX(O7,F5) -> 2023-12-27 | P12: =MAX(P7,F5) -> 2023-12-27 | Q12: =MAX(Q7,F5) -> 2024-06-02
E13: =シミュレーションシート!C41 -> 0 | F13: =入力!I12*-1 -> 0 | J13: 育休終了日の翌日 | K13: =F6+1 -> 2024-01-17 | M13: (参照終了年月日) | N13: =MIN(F6,N8) -> 2023-06-01 | O13: =MIN(F6,O8) -> 2023-12-01 | P13: =MIN(F6,P8) -> 2024-01-16 | Q13: =MIN(F6,Q8) -> 2024-01-16
E14: =シミュレーションシート!C44 -> 0 | F14: =入力!AW18 -> 393194 | J14: 取得から181日目 | K14: =F5+180 -> 2024-06-24 | M14: 期間中の育休日数 | N14: =IF(N13-N12>=0,N13-N12+1,0) -> 0 | O14: =IF(O13-O12>=0,O13-O12+1,0) -> 0 | P14: =IF(P13-P12>=0,P13-P12+1,0) -> 21 | Q14: =IF(Q13-Q12>=0,Q13-Q12+1,0) -> 0
E15: =シミュレーションシート!C46 -> 0 | F15: =入力!BA18 -> 297013 | J15: 月末時点で育休中の回数 | K15: =Q20+IF(F22="〇",1,0) -> 1 | M15: （育休開始日～当該期間末日の日数） | N15: =NETWORKDAYS($F$5,N8) -> -150 | O15: =NETWORKDAYS($F$5,O8) -> -19 | P15: =NETWORKDAYS($F$5,P8) -> 113 | Q15: =NETWORKDAYS($F$5,Q8) -> 243
E16: =シミュレーションシート!P44 -> 0 | F16: =入力!CG17*-1 -> -101436 | J16: 育休終了月 | K16: =MONTH(F6) -> 1 | M16: （育休終了日の翌日～期間の終了日の日数） | N16: =NETWORKDAYS($K$13,N8) -> -165 | O16: =NETWORKDAYS($K$13,O8) -> -34 | P16: =NETWORKDAYS($K$13,P8) -> 98 | Q16: =NETWORKDAYS($K$13,Q8) -> 228
E17: =シミュレーションシート!P46 -> 0 | F17: =入力!H20*-1 -> 0 | J17: 育休終了月の翌日の月 | K17: =MONTH(K13) -> 1 | M17: 期間中の土日を除いた育休日数 | N17: =IF(N15-IF(N16<0,0,N16)<0,0,N15-IF(N16<0,0,N16)) -> 0 | O17: =IF(O15-IF(O16<0,0,O16)-N17<0,0,O15-IF(O16<0,0,O16)-N17) -> 0 | P17: =IF(P15-IF(P16<0,0,P16)-O17-N17<0,0,P15-IF(P16<0,0,P16)-O17-N17) -> 15 | Q17: =IF(Q15-IF(Q16<0,0,Q16)-P17-O17-N17<0,0,Q15-IF(Q16<0,0,Q16)-P17-O17-N17) -> 0
D18: =N9 -> 2023-06-30 | E18: 左記の日が育休中か | F18: =IF(AND(F5<D18,D18<=F6,EDATE(F5,1)+1<F6),"〇","×") -> × | J18: 育休開始から終了までの足掛けの月数 | K18: =DATEDIF(F5,F6,"m")+1 -> 1 | M18: （育休開始から期間末日までの月末回数） | Q18: =(YEAR(Q8)-YEAR(F5))*12+MONTH(Q8)-MONTH(F5) -> 12
D19: =O9 -> 2023-12-31 | E19: 左記の日が育休中か | F19: =IF(AND(F5<D19,D19<=F6,EDATE(F5,1)+1<F6),"〇","×") -> × | M19: （育休終了から期間末日までの月末回数） | Q19: =(YEAR(Q8)-YEAR(F6))*12+MONTH(Q8)-MONTH(F6) -> 11
D20: =P9 -> 2024-06-30 | E20: 左記の日が育休中か | F20: =IF(AND(F5<D20,D20<=F6,EDATE(F5,1)+1<F6),"〇","×") -> × | M20: 月末をまたぐ回数 | Q20: =Q18-Q19 -> 1
D21: =Q9 -> 2024-12-31 | E21: 左記の日が育休中か | F21: =IF(AND(F5<D21,D21<=F6,EDATE(F5,1)+1<F6),"〇","×") -> ×
E22: 育休終了日が月末か | F22: =IF(K16=K17,"×","〇") -> ×
J24: ①育休取得～180日の手当金計算 | K24: ・雇用保険法第１７条第４項第２号ハに定める額： | N24: 15020 | O24: 円 ←毎年8月1日に改訂
J25: 計算式： | K25: =N24 -> 15020 | L25: × | M25: 30 | N25: × | O25: 67 | P25: ÷ | Q25: 100 | R25: ÷ | S25: 22 | T25: ＝ | U25: =ROUNDDOWN(K25*M25*O25/Q25/S25,0) -> 13722 | V25: 円（円未満切捨て）
E26: （俸給等関係） | F26: 育休を取得しない場合 | G26: 育休を取得した場合 | H26: 差額 | J26: 標準報酬の日額： | K26: =F7 -> 380000 | L26: ÷ | M26: 22 | N26: ＝ | O26: =ROUND(K26/M26,2) -> 17272.73 | Q26: ≒ | R26: =ROUND(O26,-1) -> 17270 | S26: 円（円未満切捨て）
E27: 給与及び諸手当 育休期間の通算支給額（日割り） | F27: =(F8+F9)/22*K9 -> 232592.7273 | G27: 0 | H27: =G27-F27 -> -232592.7273 | J27: 給付日額： | K27: =R26 -> 17270 | L27: × | M27: 67 | N27: ÷ | O27: 100 | P27: ＝ | Q27: =ROUNDDOWN(K27*M27/O27,0) -> 11570 | R27: 円（円未満切捨て）
E28: 超勤 （日割り計算） | F28: =F10/22*K9 -> 0 | G28: 0 | H28: =G28-F28 -> 0 | J28: ＡorBの少ない方＝日額単価→ | K28: =MIN(U25,Q27) -> 11570 | L28: × | M28: =K10 -> 15 | N28: 日 ＝ | O28: =ROUNDDOWN(K28*M28,0) -> 173550 | P28: 円（円未満切捨て）
E29: 育児休業手当金 育休期間の通算支給額 | F29: 0 | G29: =O28+O33 -> 173550 | H29: =G29-F29 -> 173550 | J29: ②育休取得181日～の手当金計算
E30: 社会保険料 育休期間の通算控除額（毎月末に支払いと仮定） | F30: =F11 -> -55863 | G30: =IF(OR(シミュレーションシート!I65>13,K15=1),0,F11) -> 0 | H30: =G30-F30 -> 55863 | J30: 計算式： | K30: =N24 -> 15020 | L30: × | M30: 30 | N30: × | O30: 50 | P30: ÷ | Q30: 100 | R30: ÷ | S30: 22 | T30: ＝ | U30: =ROUNDDOWN(K30*M30*O30/Q30/S30,0) -> 10240 | V30: 円（円未満切捨て）
E31: 所得税額(参考) | F31: =F12/22*K9 -> 0 | G31: - | H31: - | J31: 標準報酬の日額： | K31: =F7 -> 380000 | L31: ÷ | M31: 22 | N31: ＝ | O31: =ROUND(K31/M31,2) -> 17272.73 | P31: ≒ | Q31: =ROUND(O31,-1) -> 17270 | R31: 円（円未満切捨て）
E32: 住民税額（参考） | F32: =IF(F5>F6,0,K18*F13) -> 0 | G32: - | H32: - | J32: 給付日額： | K32: =Q31 -> 17270 | L32: × | M32: 50 | N32: ÷ | O32: 100 | P32: ＝ | Q32: =ROUNDDOWN(K32*M32/O32,0) -> 8635 | R32: 円（円未満切捨て）
E33: 計（所得税・住民税除く） | F33: =SUM(F27:F30) -> 176729.7273 | G33: =SUM(G27:G30) -> 173550 | H33: =G33-F33 -> -3179.727273 | J33: ＣorＤの少ない方=日額単価→ | K33: =MIN(U30,Q32) -> 8635 | L33: × | M33: =K11 -> 0 | N33: 日 ＝ | O33: =ROUNDDOWN(K33*M33,0) -> 0 | P33: 円（円未満切捨て）
B36: 期末勤勉手当の算定期間 | E36: （期末勤勉手当関係） | F36: 育休を取得しない場合 | G36: 育休を取得した場合 | H36: 差額 | J36: 期末手当 | K36: 休業月数 | L36: 休業日数 | M36: 育休期間の1/2除算後の休業月数 | N36: 育休期間の1/2除算後の休業日数 | O36: 1/2除算を踏まえた出勤月数 | P36: 1/2除算を踏まえた出勤日数 | Q36: 期間中の育休1か月以内判定 | R36: 全期間育休の場合、0値で表示
B37: ="期間① "&YEAR(D38)&"年"&MONTH(D38)&"月支給時" -> 期間① 2023年6月支給時 | E37: 期末・勤勉手当 支給額（期末支給額×期間率＋勤勉支給額×在職期間別割合） | F37: =F14+F15 -> 690207 | G37: =IF(F37=0,0,(F14*M43)*R37+F15*T43) -> 690207 | H37: =G37-F37 -> 0 | J37: 期間１ | K37: =IF(期間①!H14=6,6,期間①!M14) -> 0 | L37: =期間①!W9 -> 0 | M37: =K37/2 -> 0 | N37: 0 | O37: =期間①!F65 -> 6 | P37: =ROUNDUP(IF(期間①!F66=30,0,期間①!F66),0) -> 0 | Q37: =IF(R43=5,"〇","×") -> × | R37: =IF(N14/N11=1,0,1) -> 1
B38: =N7 -> 2022-12-02 | C38: ～ | D38: =N8 -> 2023-06-01 | E38: 期末・勤勉手当 社会保険料 | F38: =F16 -> -101436 | G38: =IF(G37=0,0,IF(F18="〇",0,G37*F38/F37)) -> -101436 | H38: =G38-F38 -> 0 | J38: 期間２ | K38: =IF(期間②!H14=6,6,期間②!M14) -> 0 | L38: =期間②!W9 -> 0 | M38: 0 | N38: 0 | O38: =期間②!F65 -> 6 | P38: =ROUNDUP(IF(期間②!F66=30,0,期間②!F66),0) -> 0 | Q38: =IF(R44=5,"〇","×") -> × | R38: =IF(O14/O11=1,0,1) -> 1
E39: 所得税 | F39: =F17 -> 0 | G39: =IF(G37=0,0,G37*F39/F37) -> 0 | H39: - | J39: 期間３ | K39: =IF(期間③!H14=6,6,期間③!M14) -> 0 | L39: =期間③!W9 -> 21 | M39: 0 | N39: 10.5 | O39: =期間③!F65 -> 5 | P39: =ROUNDUP(IF(期間③!F66=30,0,期間③!F66),0) -> 20 | Q39: =IF(R45=5,"〇","×") -> 〇 | R39: =IF(P14/P11=1,0,1) -> 1
B40: ="期間② "&YEAR(D41)&"年"&MONTH(D41)&"月支給時" -> 期間② 2023年12月支給時 | E40: 期末・勤勉手当 支給額（期末支給額×期間率＋勤勉支給額×在職期間別割合） | F40: =F14+F15 -> 690207 | G40: =IF(F40=0,0,(F14*M44)*R38+F15*T44) -> 690207 | H40: =G40-F40 -> 0 | J40: 期間４ | K40: =IF(期間④!H14=6,6,期間④!M14) -> 0 | L40: =期間④!W9 -> 0 | M40: 0 | N40: 0 | O40: =期間④!F65 -> 6 | P40: =ROUNDUP(IF(期間④!F66=30,0,期間④!F66),0) -> 0 | Q40: × | R40: =IF(Q14/Q11=1,0,1) -> 1
B41: =O7 -> 2023-06-02 | C41: ～ | D41: =O8 -> 2023-12-01 | E41: 期末・勤勉手当 社会保険料 | F41: =F16 -> -101436 | G41: =IF(G40=0,0,IF(F19="〇",0,G40*F41/F40)) -> -101436 | H41: =G41-F41 -> 0
E42: 所得税 | F42: =F17 -> 0 | G42: =IF(G40=0,0,G40*F42/F40) -> 0 | H42: - | J42: 在職期間別割合 | L42: 適用在職期間別割合 | O42: 勤勉手当 | P42: 期間率 | R42: 出勤月数 | S42: 出勤日数 | T42: 適用期間率
B43: ="期間③ "&YEAR(D44)&"年"&MONTH(D44)&"月支給時" -> 期間③ 2024年6月支給時 | E43: 期末・勤勉手当 支給額（期末支給額×期間率＋勤勉支給額×在職期間別割合） | F43: =F14+F15 -> 690207 | G43: =IF(F43=0,0,(F14*M45)*R39+F15*T45) -> 690207 | H43: =G43-F43 -> 0 | J43: ①3か月未満 | K43: 0.3 | L43: 期間１ | M43: =期間①!L70 -> 1 | O43: 0 | P43: 0 | Q43: 期間１ | R43: =期間①!E53 -> 6 | S43: =期間①!E54 -> 1 | T43: =期間①!V61 -> 1
B44: =P7 -> 2023-12-02 | C44: ～ | D44: =P8 -> 2024-06-01 | E44: 期末・勤勉手当 社会保険料 | F44: =F16 -> -101436 | G44: =IF(G43=0,0,IF(F20="〇",0,G43*F44/F43)) -> -101436 | H44: =G44-F44 -> 0 | J44: ②3か月以上5か月未満 | K44: 0.6 | L44: 期間２ | M44: =期間②!L70 -> 1 | O44: 15日未満 | P44: 0.05 | Q44: 期間２ | R44: =期間②!E53 -> 6 | S44: =期間②!E54 -> 0 | T44: =期間②!V61 -> 1
E45: 所得税 | F45: =F17 -> 0 | G45: =IF(G43=0,0,G43*F45/F43) -> 0 | H45: - | J45: ③5か月以上6か月未満 | K45: 0.8 | L45: 期間３ | M45: =期間③!L70 -> 1 | O45: 15日以上1月未満 | P45: 0.1 | Q45: 期間３ | R45: =期間③!E53 -> 5 | S45: =期間③!E54 -> 10 | T45: =期間③!V61 -> 1
B46: ="期間④ "&YEAR(D47)&"年"&MONTH(D47)&"月支給時" -> 期間④ 2024年12月支給時 | E46: 期末・勤勉手当 支給額（期末支給額×期間率＋勤勉支給額×在職期間別割合） | F46: =F14+F15 -> 690207 | G46: =IF(F46=0,0,(F14*M46)*R40+F15*T46) -> 690207 | H46: =G46-F46 -> 0 | J46: ④6か月 | K46: 1 | L46: 期間４ | M46: =期間④!L70 -> 1 | O46: 1月以上1月15日未満 | P46: 0.15 | Q46: 期間４ | R46: =期間④!E53 -> 6 | S46: =期間④!E54 -> 0 | T46: =期間④!V61 -> 1
B47: =Q7 -> 2024-06-02 | C47: ～ | D47: =Q8 -> 2024-12-01 | E47: 期末・勤勉手当 社会保険料 | F47: =F16 -> -101436 | G47: =IF(G46=0,0,IF(F21="〇",0,G46*F47/F46)) -> -101436 | H47: =G47-F47 -> 0 | O47: 1月15日以上2月未満 | P47: 0.2
E48: 所得税 | F48: =F17 -> 0 | G48: =IF(G46=0,0,G46*F48/F46) -> 0 | H48: - | O48: 2月以上2月15日未満 | P48: 0.3
E49: 計（期末・勤勉手当の支給額・社会保険料） | F49: =SUM(F37,F38,F40,F41,F43,F44,F46,F47) -> 2355084 | G49: =SUM(G37,G38,G40,G41,G43,G44,G46,G47) -> 2355084 | H49: =SUM(H37:H48) -> 0 | O49: 2月15日以上3月未満 | P49: 0.4
E50: 計（所得税） | F50: =SUM(F39,F42,F45,F48) -> 0 | G50: =SUM(G39,G42,G45,G48) -> 0 | H50: - | O50: 3月以上3月15日未満 | P50: 0.5
O51: 3月15日以上4月未満 | P51: 0.6
G52: ボーナスと月額との差額の総計 | H52: =H33+H49 -> -3179.727273 | O52: 4月以上4月15日未満 | P52: 0.7
O53: 4月15日以上5月未満 | P53: 0.8
O54: 5月以上5月15日未満 | P54: 0.9
O55: 5月15日以上6月未満 | P55: 0.95
O56: 6か月 | P56: 1

Sheet 期間① (hidden)
C1: 期末勤勉手当の除算期間等の計算
C2: 対象：期間①
C3: 育休の開始年月日 | D3: =計算シート!F5 -> 2023-12-27
C4: 育休終了年月日 | D4: =計算シート!F6 -> 2024-01-16 | H4: 期間の開始日が育休中か | I4: =D18 -> 出勤 | K4: 期間の終了日が育休中か | L4: =IF(S48="",S47,S48) -> 出勤 | T4: （数字の整理） | U4: 日数カウント開始基準日 | W4: 数値処理後
D5: =IF(D4-D3<1,0,D4-D3) -> 20 | G5: 育休開始日と期間の開始日のうち、大きい方 | K5: =MAX(D3,C18) -> 2023-12-27 | T5: =K7+(L7*100000) -> 45317 | U5: =IF(M14=0,K5,MAX(T5:T10)-100000) -> 2023-12-27 | V5: → | W5: =IF(M14=0,U5-1,U5) -> 2023-12-26
K6: 育休の開始日と期間の開始日のうち大きい方 | L6: 左記の日が育休中なら1で返す | T6: 45348 | U6: 期間の最終日と育休終了日の小さい方
D7: ①期間開始日の1か月後の日(１) | E7: =EDATE(C18,1)-1 -> 2023-01-01 | H7: 育休開始の1か月後の日(a) | I7: =EDATE($D$3,1)-1 -> 2024-01-26 | K7: =EDATE($K$5,1)-1 -> 2024-01-26 | L7: =COUNTIF(M7:R7,"育休中") -> 0 | M7: =VLOOKUP(K7,$C$18:$D$48,2,FALSE) ->  | N7: =VLOOKUP(K7,$F$18:$G$48,2,FALSE) ->  | O7: =VLOOKUP(K7,$I$18:$J$48,2,FALSE) ->  | P7: =VLOOKUP(K7,$L$18:$M$48,2,FALSE) ->  | Q7: =VLOOKUP(K7,$O$18:$P$48,2,FALSE) ->  | R7: =VLOOKUP(K7,$R$18:$S$48,2,FALSE) ->  | T7: 45377 | U7: =MIN(U19-1,D4) -> 2023-06-01
D8: ②(１)の翌日～2か月後の日(２) | E8: =EDATE(E7,1) -> 2023-02-01 | H8: 育休開始の2か月後の日(b) | I8: =EDATE($D$3,2)-1 -> 2024-02-26 | K8: =EDATE($K$5,2)-1 -> 2024-02-26 | L8: =COUNTIF(M8:R8,"育休中") -> 0 | M8: =VLOOKUP(K8,$C$18:$D$48,2,FALSE) ->  | N8: =VLOOKUP(K8,$F$18:$G$48,2,FALSE) ->  | T8: 45408 | U8: 育休日数 | W8: （全休の場合カウントしない）
D9: ③(２)の翌日～3か月後の日(３) | E9: =EDATE(E8,1) -> 2023-03-01 | H9: 育休開始の3か月後の日(c) | I9: =EDATE($D$3,3)-1 -> 2024-03-26 | K9: =EDATE($K$5,3)-1 -> 2024-03-26 | L9: 0 | T9: 45438 | U9: =IF(U7-W5<1,0,U7-W5) -> 0 | V9: → | W9: =IF(V50=0,0,IF(H14=6,0,U9)) -> 0
D10: ④(３)の翌日～4か月後の日(４) | E10: =EDATE(E9,1) -> 2023-04-01 | H10: 育休開始の4か月後の日(d) | I10: =EDATE($D$3,4)-1 -> 2024-04-26 | K10: =EDATE($K$5,4)-1 -> 2024-04-26 | L10: 0 | T10: 45469
D11: ⑤(４)の翌日～5か月後の日(５) | E11: =EDATE(E10,1) -> 2023-05-01 | H11: 育休開始の5か月後の日(e) | I11: =EDATE($D$3,5)-1 -> 2024-05-26 | K11: =EDATE($K$5,5)-1 -> 2024-05-26 | L11: 0
D12: ⑥(５)の翌日～6か月後の日(６) | E12: =EDATE(E11,1) -> 2023-06-01 | H12: 育休開始の6か月後の日(f) | I12: =EDATE($D$3,6)-1 -> 2024-06-26 | K12: =EDATE($K$5,6)-1 -> 2024-06-26 | L12: =COUNTIF(M12:R12,"育休中") -> 0 | T12: 左記点線内の日にちをシリアル値にし、最も大きいもの
T13: （「１」が立った日にちがあれば、その中で最も大きい
G14: 期間中全休の場合 | H14: =IF(V49=0,6,"") ->  | I14: 月 | L14: 期間中全休でない場合 | M14: =IF(H14="",SUM(L7:L12),"") -> 0 | N14: 月 | T14: もの）を「日数カウント開始基準日」に設定
C17: 対象日 | D17: 出勤／育休
B18: 期間の開始日→ | C18: =計算シート!N7 -> 2022-12-02 | D18: =IF(AND(C18>$D$3-1,C18<$D$4+1),"育休中","出勤") -> 出勤 | F18: =EDATE(C18,1) -> 2023-01-02 | G18: =IF(AND(F18>$D$3-1,F18<$D$4+1),"育休中","出勤") -> 出勤 | I18: =EDATE(F18,1) -> 2023-02-02 | J18: =IF(AND(I18>$D$3-1,I18<$D$4+1),"育休中","出勤") -> 出勤 | L18: =EDATE(I18,1) -> 2023-03-02 | M18: =IF(AND(L18>$D$3-1,L18<$D$4+1),"育休中","出勤") -> 出勤 | O18: =EDATE(L18,1) -> 2023-04-02 | P18: =IF(AND(O18>$D$3-1,O18<$D$4+1),"育休中","出勤") -> 出勤 | R18: =EDATE(O18,1) -> 2023-05-02 | S18: =IF(AND(R18>$D$3-1,R18<$D$4+1),"育休中","出勤") -> 出勤 | U18: 次の期間の初日
C19: =C18+1 -> 2022-12-03 | D19: =IF(AND(C19>$D$3-1,C19<$D$4+1),"育休中","出勤") -> 出勤 | F19: =F18+1 -> 2023-01-03 | G19: =IF(AND(F19>$D$3-1,F19<$D$4+1),"育休中","出勤") -> 出勤 | I19: =I18+1 -> 2023-02-03 | J19: 出勤 | L19: =L18+1 -> 2023-03-03 | M19: 出勤 | O19: =O18+1 -> 2023-04-03 | P19: 出勤 | R19: =R18+1 -> 2023-05-03 | S19: 出勤 | U19: =EDATE(R18,1) -> 2023-06-02
C20: =C19+1 -> 2022-12-04 | D20: 出勤 | F20: 2023-01-04 | G20: 出勤 | I20: 2023-02-04 | J20: 出勤 | L20: 2023-03-04 | M20: 出勤 | O20: 2023-04-04 | P20: 出勤 | R20: 2023-05-04 | S20: 出勤
C21: 2022-12-05 | D21: 出勤 | F21: 2023-01-05 | G21: 出勤 | I21: 2023-02-05 | J21: 出勤 | L21: 2023-03-05 | M21: 出勤 | O21: 2023-04-05 | P21: 出勤 | R21: 2023-05-05 | S21: 出勤 | U21: =U19 -> 2023-06-02
C22: 2022-12-06 | D22: 出勤 | F22: 2023-01-06 | G22: 出勤 | I22: 2023-02-06 | J22: 出勤 | L22: 2023-03-06 | M22: 出勤 | O22: 2023-04-06 | P22: 出勤 | R22: 2023-05-06 | S22: 出勤 | U22: 以降に育休あるか
C23: 2022-12-07 | D23: 出勤 | F23: 2023-01-07 | G23: 出勤 | I23: 2023-02-07 | J23: 出勤 | L23: 2023-03-07 | M23: 出勤 | O23: 2023-04-07 | P23: 出勤 | R23: 2023-05-07 | S23: 出勤 | U23: =IF(D4>U21,"〇","×") -> 〇
C24: 2022-12-08 | D24: 出勤 | F24: 2023-01-08 | G24: 出勤 | I24: 2023-02-08 | J24: 出勤 | L24: 2023-03-08 | M24: 出勤 | O24: 2023-04-08 | P24: 出勤 | R24: 2023-05-08 | S24: 出勤
C25: 2022-12-09 | D25: 出勤 | F25: 2023-01-09 | G25: 出勤 | I25: 2023-02-09 | J25: 出勤 | L25: 2023-03-09 | M25: 出勤 | O25: 2023-04-09 | P25: 出勤 | R25: 2023-05-09 | S25: 出勤
C26: 2022-12-10 | D26: 出勤 | F26: 2023-01-10 | G26: 出勤 | I26: 2023-02-10 | J26: 出勤 | L26: 2023-03-10 | M26: 出勤 | O26: 2023-04-10 | P26: 出勤 | R26: 2023-05-10 | S26: 出勤
C27: 2022-12-11 | D27: 出勤 | F27: 2023-01-11 | G27: 出勤 | I27: 2023-02-11 | J27: 出勤 | L27: 2023-03-11 | M27: 出勤 | O27: 2023-04-11 | P27: 出勤 | R27: 2023-05-11 | S27: 出勤
C28: 2022-12-12 | D28: 出勤 | F28: 2023-01-12 | G28: 出勤 | I28: 2023-02-12 | J28: 出勤 | L28: 2023-03-12 | M28: 出勤 | O28: 2023-04-12 | P28: 出勤 | R28: 2023-05-12 | S28: 出勤
C29: 2022-12-13 | D29: 出勤 | F29: 2023-01-13 | G29: 出勤 | I29: 2023-02-13 | J29: 出勤 | L29: 2023-03-13 | M29: 出勤 | O29: 2023-04-13 | P29: 出勤 | R29: 2023-05-13 | S29: 出勤
C30: 2022-12-14 | D30: 出勤 | F30: 2023-01-14 | G30: 出勤 | I30: 2023-02-14 | J30: 出勤 | L30: 2023-03-14 | M30: 出勤 | O30: 2023-04-14 | P30: 出勤 | R30: 2023-05-14 | S30: 出勤
C31: 2022-12-15 | D31: 出勤 | F31: 2023-01-15 | G31: 出勤 | I31: 2023-02-15 | J31: 出勤 | L31: 2023-03-15 | M31: 出勤 | O31: 2023-04-15 | P31: 出勤 | R31: 2023-05-15 | S31: 出勤
C32: 2022-12-16 | D32: 出勤 | F32: 2023-01-16 | G32: 出勤 | I32: 2023-02-16 | J32: 出勤 | L32: 2023-03-16 | M32: 出勤 | O32: 2023-04-16 | P32: 出勤 | R32: 2023-05-16 | S32: 出勤
C33: 2022-12-17 | D33: 出勤 | F33: 2023-01-17 | G33: 出勤 | I33: 2023-02-17 | J33: 出勤 | L33: 2023-03-17 | M33: 出勤 | O33: 2023-04-17 | P33: 出勤 | R33: 2023-05-17 | S33: 出勤
C34: 2022-12-18 | D34: 出勤 | F34: 2023-01-18 | G34: 出勤 | I34: 2023-02-18 | J34: 出勤 | L34: 2023-03-18 | M34: 出勤 | O34: 2023-04-18 | P34: 出勤 | R34: 2023-05-18 | S34: 出勤
C35: 2022-12-19 | D35: 出勤 | F35: 2023-01-19 | G35: 出勤 | I35: 2023-02-19 | J35: 出勤 | L35: 2023-03-19 | M35: 出勤 | O35: 2023-04-19 | P35: 出勤 | R35: 2023-05-19 | S35: 出勤
C36: 2022-12-20 | D36: 出勤 | F36: 2023-01-20 | G36: 出勤 | I36: 2023-02-20 | J36: 出勤 | L36: 2023-03-20 | M36: 出勤 | O36: 2023-04-20 | P36: 出勤 | R36: 2023-05-20 | S36: 出勤
C37: 2022-12-21 | D37: 出勤 | F37: 2023-01-21 | G37: 出勤 | I37: 2023-02-21 | J37: 出勤 | L37: 2023-03-21 | M37: 出勤 | O37: 2023-04-21 | P37: 出勤 | R37: 2023-05-21 | S37: 出勤
C38: 2022-12-22 | D38: 出勤 | F38: 2023-01-22 | G38: 出勤 | I38: 2023-02-22 | J38: 出勤 | L38: 2023-03-22 | M38: 出勤 | O38: 2023-04-22 | P38: 出勤 | R38: 2023-05-22 | S38: 出勤
C39: 2022-12-23 | D39: 出勤 | F39: 2023-01-23 | G39: 出勤 | I39: 2023-02-23 | J39: 出勤 | L39: 2023-03-23 | M39: 出勤 | O39: 2023-04-23 | P39: 出勤 | R39: 2023-05-23 | S39: 出勤
C40: 2022-12-24 | D40: 出勤 | F40: 2023-01-24 | G40: 出勤 | I40: 2023-02-24 | J40: 出勤 | L40: 2023-03-24 | M40: 出勤 | O40: 2023-04-24 | P40: 出勤 | R40: 2023-05-24 | S40: 出勤
C41: 2022-12-25 | D41: 出勤 | F41: 2023-01-25 | G41: 出勤 | I41: 2023-02-25 | J41: 出勤 | L41: 2023-03-25 | M41: 出勤 | O41: 2023-04-25 | P41: 出勤 | R41: 2023-05-25 | S41: 出勤
C42: 2022-12-26 | D42: 出勤 | F42: 2023-01-26 | G42: 出勤 | I42: 2023-02-26 | J42: 出勤 | L42: 2023-03-26 | M42: 出勤 | O42: 2023-04-26 | P42: 出勤 | R42: 2023-05-26 | S42: 出勤
C43: 2022-12-27 | D43: 出勤 | F43: 2023-01-27 | G43: 出勤 | I43: 2023-02-27 | J43: 出勤 | L43: 2023-03-27 | M43: 出勤 | O43: 2023-04-27 | P43: 出勤 | R43: 2023-05-27 | S43: 出勤
C44: =IF(C43="","",IF(C43+2>$F$18,"",C43+1)) -> 2022-12-28 | D44: =IF(C44="","",IF(AND(C44>$D$3-1,C44<$D$4+1),"育休中","出勤")) -> 出勤 | F44: =IF(F43="","",IF(F43+2>$I$18,"",F43+1)) -> 2023-01-28 | G44: =IF(F44="","",IF(AND(F44>$D$3-1,F44<$D$4+1),"育休中","出勤")) -> 出勤 | I44: =IF(I43="","",IF(I43+2>$L$18,"",I43+1)) -> 2023-02-28 | J44: =IF(I44="","",IF(AND(I44>$D$3-1,I44<$D$4+1),"育休中","出勤")) -> 出勤 | L44: =IF(L43="","",IF(L43+2>$O$18,"",L43+1)) -> 2023-03-28 | M44: =IF(L44="","",IF(AND(L44>$D$3-1,L44<$D$4+1),"育休中","出勤")) -> 出勤 | O44: =IF(O43="","",IF(O43+2>$R$18,"",O43+1)) -> 2023-04-28 | P44: =IF(O44="","",IF(AND(O44>$D$3-1,O44<$D$4+1),"育休中","出勤")) -> 出勤 | R44: =IF(R43="","",IF(R43+2>$U$19,"",R43+1)) -> 2023-05-28 | S44: =IF(R44="","",IF(AND(R44>$D$3-1,R44<$D$4+1),"育休中","出勤")) -> 出勤
C45: 2022-12-29 | D45: =IF(C45="","",IF(AND(C45>$D$3-1,C45<$D$4+1),"育休中","出勤")) -> 出勤 | F45: 2023-01-29 | G45: =IF(F45="","",IF(AND(F45>$D$3-1,F45<$D$4+1),"育休中","出勤")) -> 出勤 | I45: 2023-03-01 | J45: 出勤 | L45: 2023-03-29 | M45: 出勤 | O45: 2023-04-29 | P45: 出勤 | R45: 2023-05-29 | S45: 出勤
C46: 2022-12-30 | D46: 出勤 | F46: 2023-01-30 | G46: 出勤 | L46: 2023-03-30 | M46: 出勤 | O46: 2023-04-30 | P46: 出勤 | R46: 2023-05-30 | S46: 出勤
C47: 2022-12-31 | D47: 出勤 | F47: 2023-01-31 | G47: 出勤 | L47: 2023-03-31 | M47: 出勤 | O47: 2023-05-01 | P47: 出勤 | R47: 2023-05-31 | S47: 出勤
C48: 2023-01-01 | D48: 出勤 | F48: 2023-02-01 | G48: 出勤 | L48: 2023-04-01 | M48: 出勤 | R48: 2023-06-01 | S48: 出勤
E49: =VLOOKUP(U7,C18:D48,2,FALSE) ->  | F49: =IF(F48="","",IF(F48+2>$I$18,"",F48+1)) ->  | H49: =VLOOKUP(U7,F18:G48,2,FALSE) ->  | I49: =IF(I48="","",IF(I48+2>$L$18,"",I48+1)) ->  | K49: =VLOOKUP(U7,I18:J48,2,FALSE) ->  | L49: =IF(L48="","",IF(L48+2>$O$18,"",L48+1)) ->  | N49: =VLOOKUP(U7,L18:M48,2,FALSE) ->  | Q49: =VLOOKUP(U7,O18:P48,2,FALSE) ->  | T49: =VLOOKUP(U7,R18:S48,2,FALSE) -> 出勤 | V49: =C50+F50+I50+L50+O50+R50-D50-G50-J50-M50-P50-S50 -> 182
B50: 育休の合計 | C50: =COUNTIF(C18:C49,">0") -> 31 | D50: =COUNTIF(D18:D49,"育休中") -> 0 | E50: =IF(DAY(C48)=1,IF(OR(E49="育休中",E49="出勤"),1,0),0) ->  | F50: =COUNTIF(F18:F49,">0") -> 31 | G50: =COUNTIF(G18:G49,"育休中") -> 0 | H50: =IF(DAY(F48)=1,IF(OR(H49="育休中",H49="出勤"),1,0),0) ->  | I50: =COUNTIF(I18:I49,">0") -> 28 | J50: =COUNTIF(J18:J49,"育休中") -> 0 | K50: =IF(DAY(I48)=1,IF(OR(K49="育休中",K49="出勤"),1,0),0) ->  | L50: =COUNTIF(L18:L49,">0") -> 31 | M50: =COUNTIF(M18:M49,"育休中") -> 0 | N50: =IF(DAY(L48)=1,IF(OR(N49="育休中",N49="出勤"),1,0),0) ->  | O50: =COUNTIF(O18:O49,">0") -> 30 | P50: =COUNTIF(P18:P49,"育休中") -> 0 | Q50: =IF(DAY(O48)=1,IF(OR(Q49="育休中",Q49="出勤"),1,0),0) ->  | R50: =COUNTIF(R18:R49,">0") -> 31 | S50: =COUNTIF(S18:S49,"育休中") -> 0 | T50: =IF(DAY(R48)=1,IF(OR(T49="育休中",T49="出勤"),1,0),0) -> 1 | U50: 育休日数 | V50: =D50+G50+J50+M50+P50+S50 -> 0
E51: =IF(C50=D50,0,IFERROR(E50,0)) -> 0 | H51: =IF(F50=G50,0,IFERROR(H50,0)) -> 0 | K51: =IF(I50=J50,0,IFERROR(K50,0)) -> 0 | N51: =IF(L50=M50,0,IFERROR(N50,0)) -> 0 | Q51: =IF(O50=P50,0,IFERROR(Q50,0)) -> 0 | T51: =IF(R50=S50,0,IFERROR(T50,0)) -> 1
D53: 勤務月換算 | E53: =IF(H14=6,0,6-M14-IF(W9>0,1,0)) -> 6 | G53: ↓月数×100 | H53: 計算上の値 | J53: =IF((DAY($D$3)=DAY(EDATE($D$3,1)))=TRUE,EDATE($D$3,1)-1,EDATE($D$3,1)) -> 2024-01-26
D54: 勤務日換算 | E54: =IF(W9=0,0,IF(E53=6,0,IF(H14=6,0,30-W9)))+E56 -> 1 | G54: =E53*100 -> 600 | H54: =G54+E55+E54 -> 601 | J54: =D4-J53 -> -10
D55: (5月30日の場合の調整値) | E55: =IF(AND(M14=5,W9=30),1,0) -> 0
D56: (月間31日で休業日数30日の場合の調整値) | E56: =SUM(E51:T51) -> 1
H58: （Ａ）の値 | I58: （左記数値を下記数値に置換） | J58: （勤務日が０の場合1で返す） | K58: （置換後） | L58: 日数足し上げ | P58: 0 | Q58: 0 | R58: 0 | S58: 0 | T58: 0 | V58: =VLOOKUP(H54,P58:T71,5,TRUE) -> 1
D59: ① | F59: ② | H59: 0 | I59: 0 | J59: =IF(AND(K$59=I59,$F$61=0),1,0) -> 0 | K59: =VLOOKUP(F60,H59:I71,2,TRUE) -> 600 | L59: =IF(SUM(J59:J71)=1,K59,IF(F61=0,(K59+F61)-70,K59+F61)) -> 600 | P59: 1 | Q59: 15日未満 | R59: 0 | S59: 15 | T59: 0.05
C60: 1/2除算後の休業月数 | D60: =IF(H14=6,3,M14/2) -> 0 | E60: 勤務月数換算（Ａ） | F60: =IF(F61>0,6-D60-1,6-D60) -> 6 | H60: 0.5 | I60: 85 | P60: 15 | Q60: 15日以上1月未満 | R60: 1 | S60: 0 | T60: 0.1 | V60: （数値処理後）期間率
C61: 1/2除算後の休業日数 | D61: =W9/2 -> 0 | E61: 勤務日数換算（Ｂ） | F61: =IF(D61=0,0,30-D61) -> 0 | H61: 1 | I61: 100 | J61: =IF(AND(K$59=I61,$F$61=0),1,0) -> 0 | P61: 100 | Q61: 1月以上1月15日未満 | R61: 1 | S61: 15 | T61: 0.15 | V61: =IF(J54=0,T71,IF(E53=5,T71,V58)) -> 1
H62: 1.5 | I62: 185 | K62: （係数） | P62: 115 | Q62: 1月15日以上2月未満 | R62: 2 | S62: 0 | T62: 0.2
H63: 2 | I63: 200 | J63: 0 | K63: 230 | L63: ②3か月以上5か月未満 | M63: 3 | N63: 0.6 | P63: 200 | Q63: 2月以上2月15日未満 | R63: 2 | S63: 15 | T63: 0.3
D64: ③ | F64: ④ | H64: 2.5 | I64: 285 | K64: 430 | L64: ③5か月以上6か月未満 | M64: 5 | N64: 0.8 | P64: 215 | Q64: 2月15日以上3月未満 | R64: 3 | S64: 0 | T64: 0.4
C65: 月数の小数点以下を補正 | D65: =INT(MOD(SIGN(L59)*L59/100,10)) -> 6 | E65: （数値処理後）勤務月数 | F65: =IF(V49=0,3,IF(AND(F60=6,F61=0),F60,D65)) -> 6 | H65: 3 | I65: 300 | J65: 0 | K65: 530 | L65: ④6か月 | M65: 6 | N65: 1 | P65: 300 | Q65: 3月以上3月15日未満 | R65: 3 | S65: 15 | T65: 0.5
D66: =L59-D65*100 -> 0 | E66: （数値処理後）勤務日数 | F66: =IF(V49=0,0,IF(AND(F60=6,F61=0),F61,D66)) -> 0 | H66: 3.5 | I66: 385 | P66: 315 | Q66: 3月15日以上4月未満 | R66: 4 | S66: 0 | T66: 0.6
H67: 4 | I67: 400 | J67: 0 | L67: 判定 | P67: 400 | Q67: 4月以上4月15日未満 | R67: 4 | S67: 15 | T67: 0.7
H68: 4.5 | I68: 485 | L68: =VLOOKUP(L59,K63:N65,4,TRUE) -> 1 | P68: 415 | Q68: 4月15日以上5月未満 | R68: 5 | S68: 0 | T68: 0.8
H69: 5 | I69: 500 | J69: 0 | L69: （数値処理後）在職期間別割合 | P69: 500 | Q69: 5月以上5月15日未満 | R69: 5 | S69: 15 | T69: 0.9
H70: 5.5 | I70: 585 | L70: =IF(J54=0,N65,IF(H14=6,0,IF(E53=5,N65,L68))) -> 1 | P70: 515 | Q70: 5月15日以上6月未満 | R70: 5 | S70: 31 | T70: 0.95
H71: 6 | I71: 600 | J71: 1 | P71: 600 | Q71: 6か月 | R71: 6 | S71: 0 | T71: 1

Sheet 期間② (hidden)
C1: 期末勤勉手当の除算期間等の計算
C2: 対象：期間②
C3: 育休の開始年月日 | D3: =計算シート!F5 -> 2023-12-27
C4: 育休終了年月日 | D4: =計算シート!F6 -> 2024-01-16 | H4: 期間の開始日が育休中か | I4: =D18 -> 出勤 | K4: 期間の終了日が育休中か | L4: =IF(S48="",S47,S48) -> 出勤 | T4: （数字の整理） | U4: 日数カウント開始基準日 | W4: 数値処理後
D5: =IF(D4-D3<1,0,D4-D3) -> 20 | G5: 育休開始日と期間の開始日のうち、大きい方 | K5: =MAX(D3,C18) -> 2023-12-27 | T5: =K7+(L7*100000) -> 45317 | U5: =IF(M14=0,K5,MAX(T5:T10)-100000) -> 2023-12-27 | V5: → | W5: =IF(M14=0,U5-1,U5) -> 2023-12-26
K6: 育休の開始日と期間の開始日のうち大きい方 | L6: 左記の日が育休中なら1で返す | T6: 45348 | U6: 期間の最終日と育休終了日の小さい方
D7: ①期間開始日の1か月後の日(１) | E7: =EDATE(C18,1)-1 -> 2023-07-01 | H7: 育休開始の1か月後の日(a) | I7: =EDATE($D$3,1)-1 -> 2024-01-26 | K7: =EDATE($K$5,1)-1 -> 2024-01-26 | L7: =COUNTIF(M7:R7,"育休中") -> 0 | M7: =VLOOKUP(K7,$C$18:$D$48,2,FALSE) ->  | N7: =VLOOKUP(K7,$F$18:$G$48,2,FALSE) ->  | O7: =VLOOKUP(K7,$I$18:$J$48,2,FALSE) ->  | P7: =VLOOKUP(K7,$L$18:$M$48,2,FALSE) ->  | Q7: =VLOOKUP(K7,$O$18:$P$48,2,FALSE) ->  | R7: =VLOOKUP(K7,$R$18:$S$48,2,FALSE) ->  | T7: 45377 | U7: =MIN(U19-1,D4) -> 2023-12-01
D8: ②(１)の翌日～2か月後の日(２) | E8: =EDATE(E7,1) -> 2023-08-01 | H8: 育休開始の2か月後の日(b) | I8: =EDATE($D$3,2)-1 -> 2024-02-26 | K8: =EDATE($K$5,2)-1 -> 2024-02-26 | L8: =COUNTIF(M8:R8,"育休中") -> 0 | T8: 45408 | U8: 育休日数 | W8: （全休の場合カウントしない）
D9: ③(２)の翌日～3か月後の日(３) | E9: =EDATE(E8,1) -> 2023-09-01 | H9: 育休開始の3か月後の日(c) | I9: =EDATE($D$3,3)-1 -> 2024-03-26 | K9: =EDATE($K$5,3)-1 -> 2024-03-26 | L9: 0 | T9: 45438 | U9: =IF(U7-W5<1,0,U7-W5) -> 0 | V9: → | W9: =IF(V50=0,0,IF(H14=6,0,U9)) -> 0
D10: ④(３)の翌日～4か月後の日(４) | E10: =EDATE(E9,1) -> 2023-10-01 | H10: 育休開始の4か月後の日(d) | I10: =EDATE($D$3,4)-1 -> 2024-04-26 | K10: =EDATE($K$5,4)-1 -> 2024-04-26 | L10: 0 | T10: 45469
D11: ⑤(４)の翌日～5か月後の日(５) | E11: =EDATE(E10,1) -> 2023-11-01 | H11: 育休開始の5か月後の日(e) | I11: =EDATE($D$3,5)-1 -> 2024-05-26 | K11: =EDATE($K$5,5)-1 -> 2024-05-26 | L11: 0
D12: ⑥(５)の翌日～6か月後の日(６) | E12: =EDATE(E11,1) -> 2023-12-01 | H12: 育休開始の6か月後の日(f) | I12: =EDATE($D$3,6)-1 -> 2024-06-26 | K12: =EDATE($K$5,6)-1 -> 2024-06-26 | L12: =COUNTIF(M12:R12,"育休中") -> 0 | T12: 左記点線内の日にちをシリアル値にし、最も大きいもの
T13: （「１」が立った日にちがあれば、その中で最も大きい
G14: 期間中全休の場合 | H14: =IF(V49=0,6,"") ->  | I14: 月 | L14: 期間中全休でない場合 | M14: =IF(H14="",SUM(L7:L12),"") -> 0 | N14: 月 | T14: もの）を「日数カウント開始基準日」に設定
C17: 対象日 | D17: 出勤／育休
B18: 期間の開始日→ | C18: =計算シート!O7 -> 2023-06-02 | D18: =IF(AND(C18>$D$3-1,C18<$D$4+1),"育休中","出勤") -> 出勤 | F18: =EDATE(C18,1) -> 2023-07-02 | G18: =IF(AND(F18>$D$3-1,F18<$D$4+1),"育休中","出勤") -> 出勤 | I18: =EDATE(F18,1) -> 2023-08-02 | J18: =IF(AND(I18>$D$3-1,I18<$D$4+1),"育休中","出勤") -> 出勤 | L18: =EDATE(I18,1) -> 2023-09-02 | M18: =IF(AND(L18>$D$3-1,L18<$D$4+1),"育休中","出勤") -> 出勤 | O18: =EDATE(L18,1) -> 2023-10-02 | P18: =IF(AND(O18>$D$3-1,O18<$D$4+1),"育休中","出勤") -> 出勤 | R18: =EDATE(O18,1) -> 2023-11-02 | S18: =IF(AND(R18>$D$3-1,R18<$D$4+1),"育休中","出勤") -> 出勤 | U18: 次の期間の初日
C19: =C18+1 -> 2023-06-03 | D19: =IF(AND(C19>$D$3-1,C19<$D$4+1),"育休中","出勤") -> 出勤 | F19: =F18+1 -> 2023-07-03 | G19: =IF(AND(F19>$D$3-1,F19<$D$4+1),"育休中","出勤") -> 出勤 | I19: =I18+1 -> 2023-08-03 | J19: 出勤 | L19: =L18+1 -> 2023-09-03 | M19: 出勤 | O19: =O18+1 -> 2023-10-03 | P19: 出勤 | R19: =R18+1 -> 2023-11-03 | S19: 出勤 | U19: =EDATE(R18,1) -> 2023-12-02
C20: =C19+1 -> 2023-06-04 | D20: 出勤 | F20: 2023-07-04 | G20: 出勤 | I20: 2023-08-04 | J20: 出勤 | L20: 2023-09-04 | M20: 出勤 | O20: 2023-10-04 | P20: 出勤 | R20: 2023-11-04 | S20: 出勤
C21: 2023-06-05 | D21: 出勤 | F21: 2023-07-05 | G21: 出勤 | I21: 2023-08-05 | J21: 出勤 | L21: 2023-09-05 | M21: 出勤 | O21: 2023-10-05 | P21: 出勤 | R21: 2023-11-05 | S21: 出勤 | U21: =U19 -> 2023-12-02
C22: 2023-06-06 | D22: 出勤 | F22: 2023-07-06 | G22: 出勤 | I22: 2023-08-06 | J22: 出勤 | L22: 2023-09-06 | M22: 出勤 | O22: 2023-10-06 | P22: 出勤 | R22: 2023-11-06 | S22: 出勤 | U22: 以降に育休あるか
C23: 2023-06-07 | D23: 出勤 | F23: 2023-07-07 | G23: 出勤 | I23: 2023-08-07 | J23: 出勤 | L23: 2023-09-07 | M23: 出勤 | O23: 2023-10-07 | P23: 出勤 | R23: 2023-11-07 | S23: 出勤 | U23: =IF(D4>U21,"〇","×") -> 〇
C24: 2023-06-08 | D24: 出勤 | F24: 2023-07-08 | G24: 出勤 | I24: 2023-08-08 | J24: 出勤 | L24: 2023-09-08 | M24: 出勤 | O24: 2023-10-08 | P24: 出勤 | R24: 2023-11-08 | S24: 出勤
C25: 2023-06-09 | D25: 出勤 | F25: 2023-07-09 | G25: 出勤 | I25: 2023-08-09 | J25: 出勤 | L25: 2023-09-09 | M25: 出勤 | O25: 2023-10-09 | P25: 出勤 | R25: 2023-11-09 | S25: 出勤
C26: 2023-06-10 | D26: 出勤 | F26: 2023-07-10 | G26: 出勤 | I26: 2023-08-10 | J26: 出勤 | L26: 2023-09-10 | M26: 出勤 | O26: 2023-10-10 | P26: 出勤 | R26: 2023-11-10 | S26: 出勤
C27: 2023-06-11 | D27: 出勤 | F27: 2023-07-11 | G27: 出勤 | I27: 2023-08-11 | J27: 出勤 | L27: 2023-09-11 | M27: 出勤 | O27: 2023-10-11 | P27: 出勤 | R27: 2023-11-11 | S27: 出勤
C28: 2023-06-12 | D28: 出勤 | F28: 2023-07-12 | G28: 出勤 | I28: 2023-08-12 | J28: 出勤 | L28: 2023-09-12 | M28: 出勤 | O28: 2023-10-12 | P28: 出勤 | R28: 2023-11-12 | S28: 出勤
C29: 2023-06-13 | D29: 出勤 | F29: 2023-07-13 | G29: 出勤 | I29: 2023-08-13 | J29: 出勤 | L29: 2023-09-13 | M29: 出勤 | O29: 2023-10-13 | P29: 出勤 | R29: 2023-11-13 | S29: 出勤
C30: 2023-06-14 | D30: 出勤 | F30: 2023-07-14 | G30: 出勤 | I30: 2023-08-14 | J30: 出勤 | L30: 2023-09-14 | M30: 出勤 | O30: 2023-10-14 | P30: 出勤 | R30: 2023-11-14 | S30: 出勤
C31: 2023-06-15 | D31: 出勤 | F31: 2023-07-15 | G31: 出勤 | I31: 2023-08-15 | J31: 出勤 | L31: 2023-09-15 | M31: 出勤 | O31: 2023-10-15 | P31: 出勤 | R31: 2023-11-15 | S31: 出勤
C32: 2023-06-16 | D32: 出勤 | F32: 2023-07-16 | G32: 出勤 | I32: 2023-08-16 | J32: 出勤 | L32: 2023-09-16 | M32: 出勤 | O32: 2023-10-16 | P32: 出勤 | R32: 2023-11-16 | S32: 出勤
C33: 2023-06-17 | D33: 出勤 | F33: 2023-07-17 | G33: 出勤 | I33: 2023-08-17 | J33: 出勤 | L33: 2023-09-17 | M33: 出勤 | O33: 2023-10-17 | P33: 出勤 | R33: 2023-11-17 | S33: 出勤
C34: 2023-06-18 | D34: 出勤 | F34: 2023-07-18 | G34: 出勤 | I34: 2023-08-18 | J34: 出勤 | L34: 2023-09-18 | M34: 出勤 | O34: 2023-10-18 | P34: 出勤 | R34: 2023-11-18 | S34: 出勤
C35: 2023-06-19 | D35: 出勤 | F35: 2023-07-19 | G35: 出勤 | I35: 2023-08-19 | J35: 出勤 | L35: 2023-09-19 | M35: 出勤 | O35: 2023-10-19 | P35: 出勤 | R35: 2023-11-19 | S35: 出勤
C36: 2023-06-20 | D36: 出勤 | F36: 2023-07-20 | G36: 出勤 | I36: 2023-08-20 | J36: 出勤 | L36: 2023-09-20 | M36: 出勤 | O36: 2023-10-20 | P36: 出勤 | R36: 2023-11-20 | S36: 出勤
C37: 2023-06-21 | D37: 出勤 | F37: 2023-07-21 | G37: 出勤 | I37: 2023-08-21 | J37: 出勤 | L37: 2023-09-21 | M37: 出勤 | O37: 2023-10-21 | P37: 出勤 | R37: 2023-11-21 | S37: 出勤
C38: 2023-06-22 | D38: 出勤 | F38: 2023-07-22 | G38: 出勤 | I38: 2023-08-22 | J38: 出勤 | L38: 2023-09-22 | M38: 出勤 | O38: 2023-10-22 | P38: 出勤 | R38: 2023-11-22 | S38: 出勤
C39: 2023-06-23 | D39: 出勤 | F39: 2023-07-23 | G39: 出勤 | I39: 2023-08-23 | J39: 出勤 | L39: 2023-09-23 | M39: 出勤 | O39: 2023-10-23 | P39: 出勤 | R39: 2023-11-23 | S39: 出勤
C40: 2023-06-24 | D40: 出勤 | F40: 2023-07-24 | G40: 出勤 | I40: 2023-08-24 | J40: 出勤 | L40: 2023-09-24 | M40: 出勤 | O40: 2023-10-24 | P40: 出勤 | R40: 2023-11-24 | S40: 出勤
C41: 2023-06-25 | D41: 出勤 | F41: 2023-07-25 | G41: 出勤 | I41: 2023-08-25 | J41: 出勤 | L41: 2023-09-25 | M41: 出勤 | O41: 2023-10-25 | P41: 出勤 | R41: 2023-11-25 | S41: 出勤
C42: 2023-06-26 | D42: 出勤 | F42: 2023-07-26 | G42: 出勤 | I42: 2023-08-26 | J42: 出勤 | L42: 2023-09-26 | M42: 出勤 | O42: 2023-10-26 | P42: 出勤 | R42: 2023-11-26 | S42: 出勤
C43: 2023-06-27 | D43: 出勤 | F43: 2023-07-27 | G43: 出勤 | I43: 2023-08-27 | J43: 出勤 | L43: 2023-09-27 | M43: 出勤 | O43: 2023-10-27 | P43: 出勤 | R43: 2023-11-27 | S43: 出勤
C44: =IF(C43="","",IF(C43+2>$F$18,"",C43+1)) -> 2023-06-28 | D44: =IF(C44="","",IF(AND(C44>$D$3-1,C44<$D$4+1),"育休中","出勤")) -> 出勤 | F44: =IF(F43="","",IF(F43+2>$I$18,"",F43+1)) -> 2023-07-28 | G44: =IF(F44="","",IF(AND(F44>$D$3-1,F44<$D$4+1),"育休中","出勤")) -> 出勤 | I44: =IF(I43="","",IF(I43+2>$L$18,"",I43+1)) -> 2023-08-28 | J44: =IF(I44="","",IF(AND(I44>$D$3-1,I44<$D$4+1),"育休中","出勤")) -> 出勤 | L44: =IF(L43="","",IF(L43+2>$O$18,"",L43+1)) -> 2023-09-28 | M44: =IF(L44="","",IF(AND(L44>$D$3-1,L44<$D$4+1),"育休中","出勤")) -> 出勤 | O44: =IF(O43="","",IF(O43+2>$R$18,"",O43+1)) -> 2023-10-28 | P44: =IF(O44="","",IF(AND(O44>$D$3-1,O44<$D$4+1),"育休中","出勤")) -> 出勤 | R44: =IF(R43="","",IF(R43+2>$U$19,"",R43+1)) -> 2023-11-28 | S44: =IF(R44="","",IF(AND(R44>$D$3-1,R44<$D$4+1),"育休中","出勤")) -> 出勤
C45: 2023-06-29 | D45: =IF(C45="","",IF(AND(C45>$D$3-1,C45<$D$4+1),"育休中","出勤")) -> 出勤 | F45: 2023-07-29 | G45: =IF(F45="","",IF(AND(F45>$D$3-1,F45<$D$4+1),"育休中","出勤")) -> 出勤 | I45: 2023-08-29 | J45: 出勤 | L45: 2023-09-29 | M45: 出勤 | O45: 2023-10-29 | P45: 出勤 | R45: 2023-11-29 | S45: 出勤
C46: 2023-06-30 | D46: 出勤 | F46: 2023-07-30 | G46: 出勤 | I46: 2023-08-30 | J46: 出勤 | L46: 2023-09-30 | M46: 出勤 | O46: 2023-10-30 | P46: 出勤 | R46: 2023-11-30 | S46: 出勤
C47: 2023-07-01 | D47: 出勤 | F47: 2023-07-31 | G47: 出勤 | I47: 2023-08-31 | J47: 出勤 | L47: 2023-10-01 | M47: 出勤 | O47: 2023-10-31 | P47: 出勤 | R47: 2023-12-01 | S47: 出勤
F48: 2023-08-01 | G48: 出勤 | I48: 2023-09-01 | J48: 出勤 | O48: 2023-11-01 | P48: 出勤
E49: =VLOOKUP(U7,C18:D48,2,FALSE) ->  | F49: =IF(F48="","",IF(F48+2>$I$18,"",F48+1)) ->  | H49: =VLOOKUP(U7,F18:G48,2,FALSE) ->  | I49: =IF(I48="","",IF(I48+2>$L$18,"",I48+1)) ->  | K49: =VLOOKUP(U7,I18:J48,2,FALSE) ->  | L49: =IF(L48="","",IF(L48+2>$O$18,"",L48+1)) ->  | N49: =VLOOKUP(U7,L18:M48,2,FALSE) ->  | Q49: =VLOOKUP(U7,O18:P48,2,FALSE) ->  | T49: =VLOOKUP(U7,R18:S48,2,FALSE) -> 出勤 | V49: =C50+F50+I50+L50+O50+R50-D50-G50-J50-M50-P50-S50 -> 183
B50: 育休の合計 | C50: =COUNTIF(C18:C49,">0") -> 30 | D50: =COUNTIF(D18:D49,"育休中") -> 0 | E50: =IF(DAY(C48)=1,IF(OR(E49="育休中",E49="出勤"),1,0),0) ->  | F50: =COUNTIF(F18:F49,">0") -> 31 | G50: =COUNTIF(G18:G49,"育休中") -> 0 | H50: =IF(DAY(F48)=1,IF(OR(H49="育休中",H49="出勤"),1,0),0) ->  | I50: =COUNTIF(I18:I49,">0") -> 31 | J50: =COUNTIF(J18:J49,"育休中") -> 0 | K50: =IF(DAY(I48)=1,IF(OR(K49="育休中",K49="出勤"),1,0),0) ->  | L50: =COUNTIF(L18:L49,">0") -> 30 | M50: =COUNTIF(M18:M49,"育休中") -> 0 | N50: =IF(DAY(L48)=1,IF(OR(N49="育休中",N49="出勤"),1,0),0) ->  | O50: =COUNTIF(O18:O49,">0") -> 31 | P50: =COUNTIF(P18:P49,"育休中") -> 0 | Q50: =IF(DAY(O48)=1,IF(OR(Q49="育休中",Q49="出勤"),1,0),0) ->  | R50: =COUNTIF(R18:R49,">0") -> 30 | S50: =COUNTIF(S18:S49,"育休中") -> 0 | T50: =IF(DAY(R48)=1,IF(OR(T49="育休中",T49="出勤"),1,0),0) ->  | U50: 育休日数 | V50: =D50+G50+J50+M50+P50+S50 -> 0
E51: =IF(C50=D50,0,IFERROR(E50,0)) -> 0 | H51: =IF(F50=G50,0,IFERROR(H50,0)) -> 0 | K51: =IF(I50=J50,0,IFERROR(K50,0)) -> 0 | N51: =IF(L50=M50,0,IFERROR(N50,0)) -> 0 | Q51: =IF(O50=P50,0,IFERROR(Q50,0)) -> 0 | T51: =IF(R50=S50,0,IFERROR(T50,0)) -> 0
D53: 勤務月換算 | E53: =IF(H14=6,0,6-M14-IF(W9>0,1,0)) -> 6 | G53: ↓月数×100 | H53: 計算上の値 | J53: =IF((DAY($D$3)=DAY(EDATE($D$3,1)))=TRUE,EDATE($D$3,1)-1,EDATE($D$3,1)) -> 2024-01-26
D54: 勤務日換算 | E54: =IF(W9=0,0,IF(E53=6,0,IF(H14=6,0,30-W9)))+E56 -> 0 | G54: =E53*100 -> 600 | H54: =G54+E55+E54 -> 600 | J54: =D4-J53 -> -10
D55: (5月30日の場合の調整値) | E55: =IF(AND(M14=5,W9=30),1,0) -> 0
D56: (月間31日で休業日数30日の場合の調整値) | E56: =SUM(E51:T51) -> 0
H58: （Ａ）の値 | I58: （左記数値を下記数値に置換） | J58: （勤務日が０の場合1で返す） | K58: （置換後） | L58: 日数足し上げ | P58: 0 | Q58: 0 | R58: 0 | S58: 0 | T58: 0 | V58: =VLOOKUP(H54,P58:T71,5,TRUE) -> 1
D59: ① | F59: ② | H59: 0 | I59: 0 | J59: =IF(AND(K$59=I59,$F$61=0),1,0) -> 0 | K59: =VLOOKUP(F60,H59:I71,2,TRUE) -> 600 | L59: =IF(SUM(J59:J71)=1,K59,IF(F61=0,(K59+F61)-70,K59+F61)) -> 600 | P59: 1 | Q59: 15日未満 | R59: 0 | S59: 15 | T59: 0.05
C60: 1/2除算後の休業月数 | D60: =IF(H14=6,3,M14/2) -> 0 | E60: 勤務月数換算（Ａ） | F60: =IF(F61>0,6-D60-1,6-D60) -> 6 | H60: 0.5 | I60: 85 | P60: 15 | Q60: 15日以上1月未満 | R60: 1 | S60: 0 | T60: 0.1 | V60: （数値処理後）期間率
C61: 1/2除算後の休業日数 | D61: =W9/2 -> 0 | E61: 勤務日数換算（Ｂ） | F61: =IF(D61=0,0,30-D61) -> 0 | H61: 1 | I61: 100 | J61: =IF(AND(K$59=I61,$F$61=0),1,0) -> 0 | P61: 100 | Q61: 1月以上1月15日未満 | R61: 1 | S61: 15 | T61: 0.15 | V61: =IF(J54=0,T71,IF(E53=5,T71,V58)) -> 1
H62: 1.5 | I62: 185 | K62: （係数） | P62: 115 | Q62: 1月15日以上2月未満 | R62: 2 | S62: 0 | T62: 0.2
H63: 2 | I63: 200 | J63: 0 | K63: 230 | L63: ②3か月以上5か月未満 | M63: 3 | N63: 0.6 | P63: 200 | Q63: 2月以上2月15日未満 | R63: 2 | S63: 15 | T63: 0.3
D64: ③ | F64: ④ | H64: 2.5 | I64: 285 | K64: 430 | L64: ③5か月以上6か月未満 | M64: 5 | N64: 0.8 | P64: 215 | Q64: 2月15日以上3月未満 | R64: 3 | S64: 0 | T64: 0.4
C65: 月数の小数点以下を補正 | D65: =INT(MOD(SIGN(L59)*L59/100,10)) -> 6 | E65: （数値処理後）勤務月数 | F65: =IF(V49=0,3,IF(AND(F60=6,F61=0),F60,D65)) -> 6 | H65: 3 | I65: 300 | J65: 0 | K65: 530 | L65: ④6か月 | M65: 6 | N65: 1 | P65: 300 | Q65: 3月以上3月15日未満 | R65: 3 | S65: 15 | T65: 0.5
D66: =L59-D65*100 -> 0 | E66: （数値処理後）勤務日数 | F66: =IF(V49=0,0,IF(AND(F60=6,F61=0),F61,D66)) -> 0 | H66: 3.5 | I66: 385 | P66: 315 | Q66: 3月15日以上4月未満 | R66: 4 | S66: 0 | T66: 0.6
H67: 4 | I67: 400 | J67: 0 | L67: 判定 | P67: 400 | Q67: 4月以上4月15日未満 | R67: 4 | S67: 15 | T67: 0.7
H68: 4.5 | I68: 485 | L68: =VLOOKUP(L59,K63:N65,4,TRUE) -> 1 | P68: 415 | Q68: 4月15日以上5月未満 | R68: 5 | S68: 0 | T68: 0.8
H69: 5 | I69: 500 | J69: 0 | L69: （数値処理後）在職期間別割合 | P69: 500 | Q69: 5月以上5月15日未満 | R69: 5 | S69: 15 | T69: 0.9
H70: 5.5 | I70: 585 | L70: =IF(J54=0,N65,IF(H14=6,0,IF(E53=5,N65,L68))) -> 1 | P70: 515 | Q70: 5月15日以上6月未満 | R70: 5 | S70: 31 | T70: 0.95
H71: 6 | I71: 600 | J71: 1 | P71: 600 | Q71: 6か月 | R71: 6 | S71: 0 | T71: 1

Sheet 期間③ (hidden)
C1: 期末勤勉手当の除算期間等の計算
C2: 対象：期間③
C3: 育休の開始年月日 | D3: =計算シート!F5 -> 2023-12-27
C4: 育休終了年月日 | D4: =計算シート!F6 -> 2024-01-16 | H4: 期間の開始日が育休中か | I4: =D18 -> 出勤 | K4: 期間の終了日が育休中か | L4: =IF(S48="",S47,S48) -> 出勤 | T4: （数字の整理） | U4: 日数カウント開始基準日 | W4: 数値処理後
D5: =IF(D4-D3<1,0,D4-D3) -> 20 | G5: 育休開始日と期間の開始日のうち、大きい方 | K5: =MAX(D3,C18) -> 2023-12-27 | T5: =K7+(L7*100000) -> 45317 | U5: =IF(M14=0,K5,MAX(T5:T10)-100000) -> 2023-12-27 | V5: → | W5: =IF(M14=0,U5-1,U5) -> 2023-12-26
K6: 育休の開始日と期間の開始日のうち大きい方 | L6: 左記の日が育休中なら1で返す | T6: 45348 | U6: 期間の最終日と育休終了日の小さい方
D7: ①期間開始日の1か月後の日(１) | E7: =EDATE(C18,1)-1 -> 2024-01-01 | H7: 育休開始の1か月後の日(a) | I7: =EDATE($D$3,1)-1 -> 2024-01-26 | K7: =EDATE($K$5,1)-1 -> 2024-01-26 | L7: =COUNTIF(M7:R7,"育休中") -> 0 | M7: =VLOOKUP(K7,$C$18:$D$48,2,FALSE) ->  | N7: =VLOOKUP(K7,$F$18:$G$48,2,FALSE) -> 出勤 | O7: =VLOOKUP(K7,$I$18:$J$48,2,FALSE) ->  | P7: =VLOOKUP(K7,$L$18:$M$48,2,FALSE) ->  | Q7: =VLOOKUP(K7,$O$18:$P$48,2,FALSE) ->  | R7: =VLOOKUP(K7,$R$18:$S$48,2,FALSE) ->  | T7: 45377 | U7: =MIN(U19-1,D4) -> 2024-01-16
D8: ②(１)の翌日～2か月後の日(２) | E8: =EDATE(E7,1) -> 2024-02-01 | H8: 育休開始の2か月後の日(b) | I8: =EDATE($D$3,2)-1 -> 2024-02-26 | K8: =EDATE($K$5,2)-1 -> 2024-02-26 | L8: =COUNTIF(M8:R8,"育休中") -> 0 | O8: 出勤 | T8: 45408 | U8: 育休日数 | W8: （全休の場合カウントしない）
D9: ③(２)の翌日～3か月後の日(３) | E9: =EDATE(E8,1) -> 2024-03-01 | H9: 育休開始の3か月後の日(c) | I9: =EDATE($D$3,3)-1 -> 2024-03-26 | K9: =EDATE($K$5,3)-1 -> 2024-03-26 | L9: 0 | P9: 出勤 | T9: 45438 | U9: =IF(U7-W5<1,0,U7-W5) -> 21 | V9: → | W9: =IF(V50=0,0,IF(H14=6,0,U9)) -> 21
D10: ④(３)の翌日～4か月後の日(４) | E10: =EDATE(E9,1) -> 2024-04-01 | H10: 育休開始の4か月後の日(d) | I10: =EDATE($D$3,4)-1 -> 2024-04-26 | K10: =EDATE($K$5,4)-1 -> 2024-04-26 | L10: 0 | Q10: 出勤 | T10: 45469
D11: ⑤(４)の翌日～5か月後の日(５) | E11: =EDATE(E10,1) -> 2024-05-01 | H11: 育休開始の5か月後の日(e) | I11: =EDATE($D$3,5)-1 -> 2024-05-26 | K11: =EDATE($K$5,5)-1 -> 2024-05-26 | L11: 0 | R11: 出勤
D12: ⑥(５)の翌日～6か月後の日(６) | E12: =EDATE(E11,1) -> 2024-06-01 | H12: 育休開始の6か月後の日(f) | I12: =EDATE($D$3,6)-1 -> 2024-06-26 | K12: =EDATE($K$5,6)-1 -> 2024-06-26 | L12: =COUNTIF(M12:R12,"育休中") -> 0 | T12: 左記点線内の日にちをシリアル値にし、最も大きいもの
T13: （「１」が立った日にちがあれば、その中で最も大きい
G14: 期間中全休の場合 | H14: =IF(V49=0,6,"") ->  | I14: 月 | L14: 期間中全休でない場合 | M14: =IF(H14="",SUM(L7:L12),"") -> 0 | N14: 月 | T14: もの）を「日数カウント開始基準日」に設定
C17: 対象日 | D17: 出勤／育休
B18: 期間の開始日→ | C18: =計算シート!P7 -> 2023-12-02 | D18: =IF(AND(C18>$D$3-1,C18<$D$4+1),"育休中","出勤") -> 出勤 | F18: =EDATE(C18,1) -> 2024-01-02 | G18: =IF(AND(F18>$D$3-1,F18<$D$4+1),"育休中","出勤") -> 育休中 | I18: =EDATE(F18,1) -> 2024-02-02 | J18: =IF(AND(I18>$D$3-1,I18<$D$4+1),"育休中","出勤") -> 出勤 | L18: =EDATE(I18,1) -> 2024-03-02 | M18: =IF(AND(L18>$D$3-1,L18<$D$4+1),"育休中","出勤") -> 出勤 | O18: =EDATE(L18,1) -> 2024-04-02 | P18: =IF(AND(O18>$D$3-1,O18<$D$4+1),"育休中","出勤") -> 出勤 | R18: =EDATE(O18,1) -> 2024-05-02 | S18: =IF(AND(R18>$D$3-1,R18<$D$4+1),"育休中","出勤") -> 出勤 | U18: 次の期間の初日
C19: =C18+1 -> 2023-12-03 | D19: =IF(AND(C19>$D$3-1,C19<$D$4+1),"育休中","出勤") -> 出勤 | F19: =F18+1 -> 2024-01-03 | G19: =IF(AND(F19>$D$3-1,F19<$D$4+1),"育休中","出勤") -> 育休中 | I19: =I18+1 -> 2024-02-03 | J19: 出勤 | L19: =L18+1 -> 2024-03-03 | M19: 出勤 | O19: =O18+1 -> 2024-04-03 | P19: 出勤 | R19: =R18+1 -> 2024-05-03 | S19: 出勤 | U19: =EDATE(R18,1) -> 2024-06-02
C20: =C19+1 -> 2023-12-04 | D20: 出勤 | F20: 2024-01-04 | G20: 育休中 | I20: 2024-02-04 | J20: 出勤 | L20: 2024-03-04 | M20: 出勤 | O20: 2024-04-04 | P20: 出勤 | R20: 2024-05-04 | S20: 出勤
C21: 2023-12-05 | D21: 出勤 | F21: 2024-01-05 | G21: 育休中 | I21: 2024-02-05 | J21: 出勤 | L21: 2024-03-05 | M21: 出勤 | O21: 2024-04-05 | P21: 出勤 | R21: 2024-05-05 | S21: 出勤 | U21: =U19 -> 2024-06-02
C22: 2023-12-06 | D22: 出勤 | F22: 2024-01-06 | G22: 育休中 | I22: 2024-02-06 | J22: 出勤 | L22: 2024-03-06 | M22: 出勤 | O22: 2024-04-06 | P22: 出勤 | R22: 2024-05-06 | S22: 出勤 | U22: 以降に育休あるか
C23: 2023-12-07 | D23: 出勤 | F23: 2024-01-07 | G23: 育休中 | I23: 2024-02-07 | J23: 出勤 | L23: 2024-03-07 | M23: 出勤 | O23: 2024-04-07 | P23: 出勤 | R23: 2024-05-07 | S23: 出勤 | U23: =IF(D4>U21,"〇","×") -> ×
C24: 2023-12-08 | D24: 出勤 | F24: 2024-01-08 | G24: 育休中 | I24: 2024-02-08 | J24: 出勤 | L24: 2024-03-08 | M24: 出勤 | O24: 2024-04-08 | P24: 出勤 | R24: 2024-05-08 | S24: 出勤
C25: 2023-12-09 | D25: 出勤 | F25: 2024-01-09 | G25: 育休中 | I25: 2024-02-09 | J25: 出勤 | L25: 2024-03-09 | M25: 出勤 | O25: 2024-04-09 | P25: 出勤 | R25: 2024-05-09 | S25: 出勤
C26: 2023-12-10 | D26: 出勤 | F26: 2024-01-10 | G26: 育休中 | I26: 2024-02-10 | J26: 出勤 | L26: 2024-03-10 | M26: 出勤 | O26: 2024-04-10 | P26: 出勤 | R26: 2024-05-10 | S26: 出勤
C27: 2023-12-11 | D27: 出勤 | F27: 2024-01-11 | G27: 育休中 | I27: 2024-02-11 | J27: 出勤 | L27: 2024-03-11 | M27: 出勤 | O27: 2024-04-11 | P27: 出勤 | R27: 2024-05-11 | S27: 出勤
C28: 2023-12-12 | D28: 出勤 | F28: 2024-01-12 | G28: 育休中 | I28: 2024-02-12 | J28: 出勤 | L28: 2024-03-12 | M28: 出勤 | O28: 2024-04-12 | P28: 出勤 | R28: 2024-05-12 | S28: 出勤
C29: 2023-12-13 | D29: 出勤 | F29: 2024-01-13 | G29: 育休中 | I29: 2024-02-13 | J29: 出勤 | L29: 2024-03-13 | M29: 出勤 | O29: 2024-04-13 | P29: 出勤 | R29: 2024-05-13 | S29: 出勤
C30: 2023-12-14 | D30: 出勤 | F30: 2024-01-14 | G30: 育休中 | I30: 2024-02-14 | J30: 出勤 | L30: 2024-03-14 | M30: 出勤 | O30: 2024-04-14 | P30: 出勤 | R30: 2024-05-14 | S30: 出勤
C31: 2023-12-15 | D31: 出勤 | F31: 2024-01-15 | G31: 育休中 | I31: 2024-02-15 | J31: 出勤 | L31: 2024-03-15 | M31: 出勤 | O31: 2024-04-15 | P31: 出勤 | R31: 2024-05-15 | S31: 出勤
C32: 2023-12-16 | D32: 出勤 | F32: 2024-01-16 | G32: 育休中 | I32: 2024-02-16 | J32: 出勤 | L32: 2024-03-16 | M32: 出勤 | O32: 2024-04-16 | P32: 出勤 | R32: 2024-05-16 | S32: 出勤
C33: 2023-12-17 | D33: 出勤 | F33: 2024-01-17 | G33: 出勤 | I33: 2024-02-17 | J33: 出勤 | L33: 2024-03-17 | M33: 出勤 | O33: 2024-04-17 | P33: 出勤 | R33: 2024-05-17 | S33: 出勤
C34: 2023-12-18 | D34: 出勤 | F34: 2024-01-18 | G34: 出勤 | I34: 2024-02-18 | J34: 出勤 | L34: 2024-03-18 | M34: 出勤 | O34: 2024-04-18 | P34: 出勤 | R34: 2024-05-18 | S34: 出勤
C35: 2023-12-19 | D35: 出勤 | F35: 2024-01-19 | G35: 出勤 | I35: 2024-02-19 | J35: 出勤 | L35: 2024-03-19 | M35: 出勤 | O35: 2024-04-19 | P35: 出勤 | R35: 2024-05-19 | S35: 出勤
C36: 2023-12-20 | D36: 出勤 | F36: 2024-01-20 | G36: 出勤 | I36: 2024-02-20 | J36: 出勤 | L36: 2024-03-20 | M36: 出勤 | O36: 2024-04-20 | P36: 出勤 | R36: 2024-05-20 | S36: 出勤
C37: 2023-12-21 | D37: 出勤 | F37: 2024-01-21 | G37: 出勤 | I37: 2024-02-21 | J37: 出勤 | L37: 2024-03-21 | M37: 出勤 | O37: 2024-04-21 | P37: 出勤 | R37: 2024-05-21 | S37: 出勤
C38: 2023-12-22 | D38: 出勤 | F38: 2024-01-22 | G38: 出勤 | I38: 2024-02-22 | J38: 出勤 | L38: 2024-03-22 | M38: 出勤 | O38: 2024-04-22 | P38: 出勤 | R38: 2024-05-22 | S38: 出勤
C39: 2023-12-23 | D39: 出勤 | F39: 2024-01-23 | G39: 出勤 | I39: 2024-02-23 | J39: 出勤 | L39: 2024-03-23 | M39: 出勤 | O39: 2024-04-23 | P39: 出勤 | R39: 2024-05-23 | S39: 出勤
C40: 2023-12-24 | D40: 出勤 | F40: 2024-01-24 | G40: 出勤 | I40: 2024-02-24 | J40: 出勤 | L40: 2024-03-24 | M40: 出勤 | O40: 2024-04-24 | P40: 出勤 | R40: 2024-05-24 | S40: 出勤
C41: 2023-12-25 | D41: 出勤 | F41: 2024-01-25 | G41: 出勤 | I41: 2024-02-25 | J41: 出勤 | L41: 2024-03-25 | M41: 出勤 | O41: 2024-04-25 | P41: 出勤 | R41: 2024-05-25 | S41: 出勤
C42: 2023-12-26 | D42: 出勤 | F42: 2024-01-26 | G42: 出勤 | I42: 2024-02-26 | J42: 出勤 | L42: 2024-03-26 | M42: 出勤 | O42: 2024-04-26 | P42: 出勤 | R42: 2024-05-26 | S42: 出勤
C43: 2023-12-27 | D43: 育休中 | F43: 2024-01-27 | G43: 出勤 | I43: 2024-02-27 | J43: 出勤 | L43: 2024-03-27 | M43: 出勤 | O43: 2024-04-27 | P43: 出勤 | R43: 2024-05-27 | S43: 出勤
C44: =IF(C43="","",IF(C43+2>$F$18,"",C43+1)) -> 2023-12-28 | D44: =IF(C44="","",IF(AND(C44>$D$3-1,C44<$D$4+1),"育休中","出勤")) -> 育休中 | F44: =IF(F43="","",IF(F43+2>$I$18,"",F43+1)) -> 2024-01-28 | G44: =IF(F44="","",IF(AND(F44>$D$3-1,F44<$D$4+1),"育休中","出勤")) -> 出勤 | I44: =IF(I43="","",IF(I43+2>$L$18,"",I43+1)) -> 2024-02-28 | J44: =IF(I44="","",IF(AND(I44>$D$3-1,I44<$D$4+1),"育休中","出勤")) -> 出勤 | L44: =IF(L43="","",IF(L43+2>$O$18,"",L43+1)) -> 2024-03-28 | M44: =IF(L44="","",IF(AND(L44>$D$3-1,L44<$D$4+1),"育休中","出勤")) -> 出勤 | O44: =IF(O43="","",IF(O43+2>$R$18,"",O43+1)) -> 2024-04-28 | P44: =IF(O44="","",IF(AND(O44>$D$3-1,O44<$D$4+1),"育休中","出勤")) -> 出勤 | R44: =IF(R43="","",IF(R43+2>$U$19,"",R43+1)) -> 2024-05-28 | S44: =IF(R44="","",IF(AND(R44>$D$3-1,R44<$D$4+1),"育休中","出勤")) -> 出勤
C45: 2023-12-29 | D45: =IF(C45="","",IF(AND(C45>$D$3-1,C45<$D$4+1),"育休中","出勤")) -> 育休中 | F45: 2024-01-29 | G45: =IF(F45="","",IF(AND(F45>$D$3-1,F45<$D$4+1),"育休中","出勤")) -> 出勤 | I45: 2024-02-29 | J45: 出勤 | L45: 2024-03-29 | M45: 出勤 | O45: 2024-04-29 | P45: 出勤 | R45: 2024-05-29 | S45: 出勤
C46: 2023-12-30 | D46: 育休中 | F46: 2024-01-30 | G46: 出勤 | I46: 2024-03-01 | J46: 出勤 | L46: 2024-03-30 | M46: 出勤 | O46: 2024-04-30 | P46: 出勤 | R46: 2024-05-30 | S46: 出勤
C47: 2023-12-31 | D47: 育休中 | F47: 2024-01-31 | G47: 出勤 | L47: 2024-03-31 | M47: 出勤 | O47: 2024-05-01 | P47: 出勤 | R47: 2024-05-31 | S47: 出勤
C48: 2024-01-01 | D48: 育休中 | F48: 2024-02-01 | G48: 出勤 | L48: 2024-04-01 | M48: 出勤 | R48: 2024-06-01 | S48: 出勤
E49: =VLOOKUP(U7,C18:D48,2,FALSE) ->  | F49: =IF(F48="","",IF(F48+2>$I$18,"",F48+1)) ->  | H49: =VLOOKUP(U7,F18:G48,2,FALSE) -> 育休中 | I49: =IF(I48="","",IF(I48+2>$L$18,"",I48+1)) ->  | K49: =VLOOKUP(U7,I18:J48,2,FALSE) ->  | L49: =IF(L48="","",IF(L48+2>$O$18,"",L48+1)) ->  | N49: =VLOOKUP(U7,L18:M48,2,FALSE) ->  | Q49: =VLOOKUP(U7,O18:P48,2,FALSE) ->  | T49: =VLOOKUP(U7,R18:S48,2,FALSE) ->  | V49: =C50+F50+I50+L50+O50+R50-D50-G50-J50-M50-P50-S50 -> 162
B50: 育休の合計 | C50: =COUNTIF(C18:C49,">0") -> 31 | D50: =COUNTIF(D18:D49,"育休中") -> 6 | E50: =IF(DAY(C48)=1,IF(OR(E49="育休中",E49="出勤"),1,0),0) ->  | F50: =COUNTIF(F18:F49,">0") -> 31 | G50: =COUNTIF(G18:G49,"育休中") -> 15 | H50: =IF(DAY(F48)=1,IF(OR(H49="育休中",H49="出勤"),1,0),0) -> 1 | I50: =COUNTIF(I18:I49,">0") -> 29 | J50: =COUNTIF(J18:J49,"育休中") -> 0 | K50: =IF(DAY(I48)=1,IF(OR(K49="育休中",K49="出勤"),1,0),0) ->  | L50: =COUNTIF(L18:L49,">0") -> 31 | M50: =COUNTIF(M18:M49,"育休中") -> 0 | N50: =IF(DAY(L48)=1,IF(OR(N49="育休中",N49="出勤"),1,0),0) ->  | O50: =COUNTIF(O18:O49,">0") -> 30 | P50: =COUNTIF(P18:P49,"育休中") -> 0 | Q50: =IF(DAY(O48)=1,IF(OR(Q49="育休中",Q49="出勤"),1,0),0) ->  | R50: =COUNTIF(R18:R49,">0") -> 31 | S50: =COUNTIF(S18:S49,"育休中") -> 0 | T50: =IF(DAY(R48)=1,IF(OR(T49="育休中",T49="出勤"),1,0),0) ->  | U50: 育休日数 | V50: =D50+G50+J50+M50+P50+S50 -> 21
E51: =IF(C50=D50,0,IFERROR(E50,0)) -> 0 | H51: =IF(F50=G50,0,IFERROR(H50,0)) -> 1 | K51: =IF(I50=J50,0,IFERROR(K50,0)) -> 0 | N51: =IF(L50=M50,0,IFERROR(N50,0)) -> 0 | Q51: =IF(O50=P50,0,IFERROR(Q50,0)) -> 0 | T51: =IF(R50=S50,0,IFERROR(T50,0)) -> 0
D53: 勤務月換算 | E53: =IF(H14=6,0,6-M14-IF(W9>0,1,0)) -> 5 | G53: ↓月数×100 | H53: 計算上の値 | J53: =IF((DAY($D$3)=DAY(EDATE($D$3,1)))=TRUE,EDATE($D$3,1)-1,EDATE($D$3,1)) -> 2024-01-26
D54: 勤務日換算 | E54: =IF(W9=0,0,IF(E53=6,0,IF(H14=6,0,30-W9)))+E56 -> 10 | G54: =E53*100 -> 500 | H54: =G54+E55+E54 -> 510 | J54: =D4-J53 -> -10
D55: (5月30日の場合の調整値) | E55: =IF(AND(M14=5,W9=30),1,0) -> 0
D56: (月間31日で休業日数30日の場合の調整値) | E56: =SUM(E51:T51) -> 1
H58: （Ａ）の値 | I58: （左記数値を下記数値に置換） | J58: （勤務日が０の場合1で返す） | K58: （置換後） | L58: 日数足し上げ | P58: 0 | Q58: 0 | R58: 0 | S58: 0 | T58: 0 | V58: =VLOOKUP(H54,P58:T71,5,TRUE) -> 0.9
D59: ① | F59: ② | H59: 0 | I59: 0 | J59: =IF(AND(K$59=I59,$F$61=0),1,0) -> 0 | K59: =VLOOKUP(F60,H59:I71,2,TRUE) -> 500 | L59: =IF(SUM(J59:J71)=1,K59,IF(F61=0,(K59+F61)-70,K59+F61)) -> 519.5 | P59: 1 | Q59: 15日未満 | R59: 0 | S59: 15 | T59: 0.05
C60: 1/2除算後の休業月数 | D60: =IF(H14=6,3,M14/2) -> 0 | E60: 勤務月数換算（Ａ） | F60: =IF(F61>0,6-D60-1,6-D60) -> 5 | H60: 0.5 | I60: 85 | P60: 15 | Q60: 15日以上1月未満 | R60: 1 | S60: 0 | T60: 0.1 | V60: （数値処理後）期間率
C61: 1/2除算後の休業日数 | D61: =W9/2 -> 10.5 | E61: 勤務日数換算（Ｂ） | F61: =IF(D61=0,0,30-D61) -> 19.5 | H61: 1 | I61: 100 | J61: =IF(AND(K$59=I61,$F$61=0),1,0) -> 0 | P61: 100 | Q61: 1月以上1月15日未満 | R61: 1 | S61: 15 | T61: 0.15 | V61: =IF(J54=0,T71,IF(E53=5,T71,V58)) -> 1
H62: 1.5 | I62: 185 | K62: （係数） | P62: 115 | Q62: 1月15日以上2月未満 | R62: 2 | S62: 0 | T62: 0.2
H63: 2 | I63: 200 | J63: 0 | K63: 230 | L63: ②3か月以上5か月未満 | M63: 3 | N63: 0.6 | P63: 200 | Q63: 2月以上2月15日未満 | R63: 2 | S63: 15 | T63: 0.3
D64: ③ | F64: ④ | H64: 2.5 | I64: 285 | K64: 430 | L64: ③5か月以上6か月未満 | M64: 5 | N64: 0.8 | P64: 215 | Q64: 2月15日以上3月未満 | R64: 3 | S64: 0 | T64: 0.4
C65: 月数の小数点以下を補正 | D65: =INT(MOD(SIGN(L59)*L59/100,10)) -> 5 | E65: （数値処理後）勤務月数 | F65: =IF(V49=0,3,IF(AND(F60=6,F61=0),F60,D65)) -> 5 | H65: 3 | I65: 300 | J65: 0 | K65: 530 | L65: ④6か月 | M65: 6 | N65: 1 | P65: 300 | Q65: 3月以上3月15日未満 | R65: 3 | S65: 15 | T65: 0.5
D66: =L59-D65*100 -> 19.5 | E66: （数値処理後）勤務日数 | F66: =IF(V49=0,0,IF(AND(F60=6,F61=0),F61,D66)) -> 19.5 | H66: 3.5 | I66: 385 | P66: 315 | Q66: 3月15日以上4月未満 | R66: 4 | S66: 0 | T66: 0.6
H67: 4 | I67: 400 | J67: 0 | L67: 判定 | P67: 400 | Q67: 4月以上4月15日未満 | R67: 4 | S67: 15 | T67: 0.7
H68: 4.5 | I68: 485 | L68: =VLOOKUP(L59,K63:N65,4,TRUE) -> 0.8 | P68: 415 | Q68: 4月15日以上5月未満 | R68: 5 | S68: 0 | T68: 0.8
H69: 5 | I69: 500 | J69: 0 | L69: （数値処理後）在職期間別割合 | P69: 500 | Q69: 5月以上5月15日未満 | R69: 5 | S69: 15 | T69: 0.9
H70: 5.5 | I70: 585 | L70: =IF(J54=0,N65,IF(H14=6,0,IF(E53=5,N65,L68))) -> 1 | P70: 515 | Q70: 5月15日以上6月未満 | R70: 5 | S70: 31 | T70: 0.95
H71: 6 | I71: 600 | J71: 0 | P71: 600 | Q71: 6か月 | R71: 6 | S71: 0 | T71: 1

Sheet 期間④ (hidden)
C1: 期末勤勉手当の除算期間等の計算
C2: 対象：期間④
C3: 育休の開始年月日 | D3: =計算シート!F5 -> 2023-12-27
C4: 育休終了年月日 | D4: =計算シート!F6 -> 2024-01-16 | H4: 期間の開始日が育休中か | I4: =D18 -> 出勤 | K4: 期間の終了日が育休中か | L4: =IF(S48="",S47,S48) -> 出勤 | T4: （数字の整理） | U4: 日数カウント開始基準日 | W4: 数値処理後
D5: =IF(D4-D3<1,0,D4-D3) -> 20 | G5: 育休開始日と期間の開始日のうち、大きい方 | K5: =MAX(D3,C18) -> 2024-06-02 | T5: =K7+(L7*100000) -> 45474 | U5: =IF(M14=0,K5,MAX(T5:T10)-100000) -> 2024-06-02 | V5: → | W5: =IF(M14=0,U5-1,U5) -> 2024-06-01
K6: 育休の開始日と期間の開始日のうち大きい方 | L6: 左記の日が育休中なら1で返す | T6: 45505 | U6: 期間の最終日と育休終了日の小さい方
D7: ①期間開始日の1か月後の日(１) | E7: =EDATE(C18,1)-1 -> 2024-07-01 | H7: 育休開始の1か月後の日(a) | I7: =EDATE($D$3,1)-1 -> 2024-01-26 | K7: =EDATE($K$5,1)-1 -> 2024-07-01 | L7: =COUNTIF(M7:R7,"育休中") -> 0 | M7: =VLOOKUP(K7,$C$18:$D$48,2,FALSE) -> 出勤 | N7: =VLOOKUP(K7,$F$18:$G$48,2,FALSE) ->  | O7: =VLOOKUP(K7,$I$18:$J$48,2,FALSE) ->  | P7: =VLOOKUP(K7,$L$18:$M$48,2,FALSE) ->  | Q7: =VLOOKUP(K7,$O$18:$P$48,2,FALSE) ->  | R7: =VLOOKUP(K7,$R$18:$S$48,2,FALSE) ->  | T7: 45536 | U7: =MIN(U19-1,D4) -> 2024-01-16
D8: ②(１)の翌日～2か月後の日(２) | E8: =EDATE(E7,1) -> 2024-08-01 | H8: 育休開始の2か月後の日(b) | I8: =EDATE($D$3,2)-1 -> 2024-02-26 | K8: =EDATE($K$5,2)-1 -> 2024-08-01 | L8: =COUNTIF(M8:R8,"育休中") -> 0 | N8: 出勤 | T8: 45566 | U8: 育休日数 | W8: （全休の場合カウントしない）
D9: ③(２)の翌日～3か月後の日(３) | E9: =EDATE(E8,1) -> 2024-09-01 | H9: 育休開始の3か月後の日(c) | I9: =EDATE($D$3,3)-1 -> 2024-03-26 | K9: =EDATE($K$5,3)-1 -> 2024-09-01 | L9: 0 | O9: 出勤 | T9: 45597 | U9: =IF(U7-W5<1,0,U7-W5) -> 0 | V9: → | W9: =IF(V50=0,0,IF(H14=6,0,U9)) -> 0
D10: ④(３)の翌日～4か月後の日(４) | E10: =EDATE(E9,1) -> 2024-10-01 | H10: 育休開始の4か月後の日(d) | I10: =EDATE($D$3,4)-1 -> 2024-04-26 | K10: =EDATE($K$5,4)-1 -> 2024-10-01 | L10: 0 | P10: 出勤 | T10: 45627
D11: ⑤(４)の翌日～5か月後の日(５) | E11: =EDATE(E10,1) -> 2024-11-01 | H11: 育休開始の5か月後の日(e) | I11: =EDATE($D$3,5)-1 -> 2024-05-26 | K11: =EDATE($K$5,5)-1 -> 2024-11-01 | L11: 0 | Q11: 出勤
D12: ⑥(５)の翌日～6か月後の日(６) | E12: =EDATE(E11,1) -> 2024-12-01 | H12: 育休開始の6か月後の日(f) | I12: =EDATE($D$3,6)-1 -> 2024-06-26 | K12: =EDATE($K$5,6)-1 -> 2024-12-01 | L12: =COUNTIF(M12:R12,"育休中") -> 0 | R12: 出勤 | T12: 左記点線内の日にちをシリアル値にし、最も大きいもの
T13: （「１」が立った日にちがあれば、その中で最も大きい
G14: 期間中全休の場合 | H14: =IF(V49=0,6,"") ->  | I14: 月 | L14: 期間中全休でない場合 | M14: =IF(H14="",SUM(L7:L12),"") -> 0 | N14: 月 | T14: もの）を「日数カウント開始基準日」に設定
C17: 対象日 | D17: 出勤／育休
B18: 期間の開始日→ | C18: =計算シート!Q7 -> 2024-06-02 | D18: =IF(AND(C18>$D$3-1,C18<$D$4+1),"育休中","出勤") -> 出勤 | F18: =EDATE(C18,1) -> 2024-07-02 | G18: =IF(AND(F18>$D$3-1,F18<$D$4+1),"育休中","出勤") -> 出勤 | I18: =EDATE(F18,1) -> 2024-08-02 | J18: =IF(AND(I18>$D$3-1,I18<$D$4+1),"育休中","出勤") -> 出勤 | L18: =EDATE(I18,1) -> 2024-09-02 | M18: =IF(AND(L18>$D$3-1,L18<$D$4+1),"育休中","出勤") -> 出勤 | O18: =EDATE(L18,1) -> 2024-10-02 | P18: =IF(AND(O18>$D$3-1,O18<$D$4+1),"育休中","出勤") -> 出勤 | R18: =EDATE(O18,1) -> 2024-11-02 | S18: =IF(AND(R18>$D$3-1,R18<$D$4+1),"育休中","出勤") -> 出勤 | U18: 次の期間の初日
C19: =C18+1 -> 2024-06-03 | D19: =IF(AND(C19>$D$3-1,C19<$D$4+1),"育休中","出勤") -> 出勤 | F19: =F18+1 -> 2024-07-03 | G19: =IF(AND(F19>$D$3-1,F19<$D$4+1),"育休中","出勤") -> 出勤 | I19: =I18+1 -> 2024-08-03 | J19: 出勤 | L19: =L18+1 -> 2024-09-03 | M19: 出勤 | O19: =O18+1 -> 2024-10-03 | P19: 出勤 | R19: =R18+1 -> 2024-11-03 | S19: 出勤 | U19: =EDATE(R18,1) -> 2024-12-02
C20: =C19+1 -> 2024-06-04 | D20: 出勤 | F20: 2024-07-04 | G20: 出勤 | I20: 2024-08-04 | J20: 出勤 | L20: 2024-09-04 | M20: 出勤 | O20: 2024-10-04 | P20: 出勤 | R20: 2024-11-04 | S20: 出勤
C21: 2024-06-05 | D21: 出勤 | F21: 2024-07-05 | G21: 出勤 | I21: 2024-08-05 | J21: 出勤 | L21: 2024-09-05 | M21: 出勤 | O21: 2024-10-05 | P21: 出勤 | R21: 2024-11-05 | S21: 出勤 | U21: =U19 -> 2024-12-02
C22: 2024-06-06 | D22: 出勤 | F22: 2024-07-06 | G22: 出勤 | I22: 2024-08-06 | J22: 出勤 | L22: 2024-09-06 | M22: 出勤 | O22: 2024-10-06 | P22: 出勤 | R22: 2024-11-06 | S22: 出勤 | U22: 以降に育休あるか
C23: 2024-06-07 | D23: 出勤 | F23: 2024-07-07 | G23: 出勤 | I23: 2024-08-07 | J23: 出勤 | L23: 2024-09-07 | M23: 出勤 | O23: 2024-10-07 | P23: 出勤 | R23: 2024-11-07 | S23: 出勤 | U23: =IF(D4>U21,"〇","×") -> ×
C24: 2024-06-08 | D24: 出勤 | F24: 2024-07-08 | G24: 出勤 | I24: 2024-08-08 | J24: 出勤 | L24: 2024-09-08 | M24: 出勤 | O24: 2024-10-08 | P24: 出勤 | R24: 2024-11-08 | S24: 出勤
C25: 2024-06-09 | D25: 出勤 | F25: 2024-07-09 | G25: 出勤 | I25: 2024-08-09 | J25: 出勤 | L25: 2024-09-09 | M25: 出勤 | O25: 2024-10-09 | P25: 出勤 | R25: 2024-11-09 | S25: 出勤
C26: 2024-06-10 | D26: 出勤 | F26: 2024-07-10 | G26: 出勤 | I26: 2024-08-10 | J26: 出勤 | L26: 2024-09-10 | M26: 出勤 | O26: 2024-10-10 | P26: 出勤 | R26: 2024-11-10 | S26: 出勤
C27: 2024-06-11 | D27: 出勤 | F27: 2024-07-11 | G27: 出勤 | I27: 2024-08-11 | J27: 出勤 | L27: 2024-09-11 | M27: 出勤 | O27: 2024-10-11 | P27: 出勤 | R27: 2024-11-11 | S27: 出勤
C28: 2024-06-12 | D28: 出勤 | F28: 2024-07-12 | G28: 出勤 | I28: 2024-08-12 | J28: 出勤 | L28: 2024-09-12 | M28: 出勤 | O28: 2024-10-12 | P28: 出勤 | R28: 2024-11-12 | S28: 出勤
C29: 2024-06-13 | D29: 出勤 | F29: 2024-07-13 | G29: 出勤 | I29: 2024-08-13 | J29: 出勤 | L29: 2024-09-13 | M29: 出勤 | O29: 2024-10-13 | P29: 出勤 | R29: 2024-11-13 | S29: 出勤
C30: 2024-06-14 | D30: 出勤 | F30: 2024-07-14 | G30: 出勤 | I30: 2024-08-14 | J30: 出勤 | L30: 2024-09-14 | M30: 出勤 | O30: 2024-10-14 | P30: 出勤 | R30: 2024-11-14 | S30: 出勤
C31: 2024-06-15 | D31: 出勤 | F31: 2024-07-15 | G31: 出勤 | I31: 2024-08-15 | J31: 出勤 | L31: 2024-09-15 | M31: 出勤 | O31: 2024-10-15 | P31: 出勤 | R31: 2024-11-15 | S31: 出勤
C32: 2024-06-16 | D32: 出勤 | F32: 2024-07-16 | G32: 出勤 | I32: 2024-08-16 | J32: 出勤 | L32: 2024-09-16 | M32: 出勤 | O32: 2024-10-16 | P32: 出勤 | R32: 2024-11-16 | S32: 出勤
C33: 2024-06-17 | D33: 出勤 | F33: 2024-07-17 | G33: 出勤 | I33: 2024-08-17 | J33: 出勤 | L33: 2024-09-17 | M33: 出勤 | O33: 2024-10-17 | P33: 出勤 | R33: 2024-11-17 | S33: 出勤
C34: 2024-06-18 | D34: 出勤 | F34: 2024-07-18 | G34: 出勤 | I34: 2024-08-18 | J34: 出勤 | L34: 2024-09-18 | M34: 出勤 | O34: 2024-10-18 | P34: 出勤 | R34: 2024-11-18 | S34: 出勤
C35: 2024-06-19 | D35: 出勤 | F35: 2024-07-19 | G35: 出勤 | I35: 2024-08-19 | J35: 出勤 | L35: 2024-09-19 | M35: 出勤 | O35: 2024-10-19 | P35: 出勤 | R35: 2024-11-19 | S35: 出勤
C36: 2024-06-20 | D36: 出勤 | F36: 2024-07-20 | G36: 出勤 | I36: 2024-08-20 | J36: 出勤 | L36: 2024-09-20 | M36: 出勤 | O36: 2024-10-20 | P36: 出勤 | R36: 2024-11-20 | S36: 出勤
C37: 2024-06-21 | D37: 出勤 | F37: 2024-07-21 | G37: 出勤 | I37: 2024-08-21 | J37: 出勤 | L37: 2024-09-21 | M37: 出勤 | O37: 2024-10-21 | P37: 出勤 | R37: 2024-11-21 | S37: 出勤
C38: 2024-06-22 | D38: 出勤 | F38: 2024-07-22 | G38: 出勤 | I38: 2024-08-22 | J38: 出勤 | L38: 2024-09-22 | M38: 出勤 | O38: 2024-10-22 | P38: 出勤 | R38: 2024-11-22 | S38: 出勤
C39: 2024-06-23 | D39: 出勤 | F39: 2024-07-23 | G39: 出勤 | I39: 2024-08-23 | J39: 出勤 | L39: 2024-09-23 | M39: 出勤 | O39: 2024-10-23 | P39: 出勤 | R39: 2024-11-23 | S39: 出勤
C40: 2024-06-24 | D40: 出勤 | F40: 2024-07-24 | G40: 出勤 | I40: 2024-08-24 | J40: 出勤 | L40: 2024-09-24 | M40: 出勤 | O40: 2024-10-24 | P40: 出勤 | R40: 2024-11-24 | S40: 出勤
C41: 2024-06-25 | D41: 出勤 | F41: 2024-07-25 | G41: 出勤 | I41: 2024-08-25 | J41: 出勤 | L41: 2024-09-25 | M41: 出勤 | O41: 2024-10-25 | P41: 出勤 | R41: 2024-11-25 | S41: 出勤
C42: 2024-06-26 | D42: 出勤 | F42: 2024-07-26 | G42: 出勤 | I42: 2024-08-26 | J42: 出勤 | L42: 2024-09-26 | M42: 出勤 | O42: 2024-10-26 | P42: 出勤 | R42: 2024-11-26 | S42: 出勤
C43: 2024-06-27 | D43: 出勤 | F43: 2024-07-27 | G43: 出勤 | I43: 2024-08-27 | J43: 出勤 | L43: 2024-09-27 | M43: 出勤 | O43: 2024-10-27 | P43: 出勤 | R43: 2024-11-27 | S43: 出勤
C44: =IF(C43="","",IF(C43+2>$F$18,"",C43+1)) -> 2024-06-28 | D44: =IF(C44="","",IF(AND(C44>$D$3-1,C44<$D$4+1),"育休中","出勤")) -> 出勤 | F44: =IF(F43="","",IF(F43+2>$I$18,"",F43+1)) -> 2024-07-28 | G44: =IF(F44="","",IF(AND(F44>$D$3-1,F44<$D$4+1),"育休中","出勤")) -> 出勤 | I44: =IF(I43="","",IF(I43+2>$L$18,"",I43+1)) -> 2024-08-28 | J44: =IF(I44="","",IF(AND(I44>$D$3-1,I44<$D$4+1),"育休中","出勤")) -> 出勤 | L44: =IF(L43="","",IF(L43+2>$O$18,"",L43+1)) -> 2024-09-28 | M44: =IF(L44="","",IF(AND(L44>$D$3-1,L44<$D$4+1),"育休中","出勤")) -> 出勤 | O44: =IF(O43="","",IF(O43+2>$R$18,"",O43+1)) -> 2024-10-28 | P44: =IF(O44="","",IF(AND(O44>$D$3-1,O44<$D$4+1),"育休中","出勤")) -> 出勤 | R44: =IF(R43="","",IF(R43+2>$U$19,"",R43+1)) -> 2024-11-28 | S44: =IF(R44="","",IF(AND(R44>$D$3-1,R44<$D$4+1),"育休中","出勤")) -> 出勤
C45: 2024-06-29 | D45: =IF(C45="","",IF(AND(C45>$D$3-1,C45<$D$4+1),"育休中","出勤")) -> 出勤 | F45: 2024-07-29 | G45: =IF(F45="","",IF(AND(F45>$D$3-1,F45<$D$4+1),"育休中","出勤")) -> 出勤 | I45: 2024-08-29 | J45: 出勤 | L45: 2024-09-29 | M45: 出勤 | O45: 2024-10-29 | P45: 出勤 | R45: 2024-11-29 | S45: 出勤
C46: 2024-06-30 | D46: 出勤 | F46: 2024-07-30 | G46: 出勤 | I46: 2024-08-30 | J46: 出勤 | L46: 2024-09-30 | M46: 出勤 | O46: 2024-10-30 | P46: 出勤 | R46: 2024-11-30 | S46: 出勤
C47: 2024-07-01 | D47: 出勤 | F47: 2024-07-31 | G47: 出勤 | I47: 2024-08-31 | J47: 出勤 | L47: 2024-10-01 | M47: 出勤 | O47: 2024-10-31 | P47: 出勤 | R47: 2024-12-01 | S47: 出勤
F48: 2024-08-01 | G48: 出勤 | I48: 2024-09-01 | J48: 出勤 | O48: 2024-11-01 | P48: 出勤
E49: =VLOOKUP(U7,C18:D48,2,FALSE) ->  | F49: =IF(F48="","",IF(F48+2>$I$18,"",F48+1)) ->  | H49: =VLOOKUP(U7,F18:G48,2,FALSE) ->  | I49: =IF(I48="","",IF(I48+2>$L$18,"",I48+1)) ->  | K49: =VLOOKUP(U7,I18:J48,2,FALSE) ->  | L49: =IF(L48="","",IF(L48+2>$O$18,"",L48+1)) ->  | N49: =VLOOKUP(U7,L18:M48,2,FALSE) ->  | Q49: =VLOOKUP(U7,O18:P48,2,FALSE) ->  | T49: =VLOOKUP(U7,R18:S48,2,FALSE) ->  | V49: =C50+F50+I50+L50+O50+R50-D50-G50-J50-M50-P50-S50 -> 183
B50: 育休の合計 | C50: =COUNTIF(C18:C49,">0") -> 30 | D50: =COUNTIF(D18:D49,"育休中") -> 0 | E50: =IF(DAY(C48)=1,IF(OR(E49="育休中",E49="出勤"),1,0),0) ->  | F50: =COUNTIF(F18:F49,">0") -> 31 | G50: =COUNTIF(G18:G49,"育休中") -> 0 | H50: =IF(DAY(F48)=1,IF(OR(H49="育休中",H49="出勤"),1,0),0) ->  | I50: =COUNTIF(I18:I49,">0") -> 31 | J50: =COUNTIF(J18:J49,"育休中") -> 0 | K50: =IF(DAY(I48)=1,IF(OR(K49="育休中",K49="出勤"),1,0),0) ->  | L50: =COUNTIF(L18:L49,">0") -> 30 | M50: =COUNTIF(M18:M49,"育休中") -> 0 | N50: =IF(DAY(L48)=1,IF(OR(N49="育休中",N49="出勤"),1,0),0) ->  | O50: =COUNTIF(O18:O49,">0") -> 31 | P50: =COUNTIF(P18:P49,"育休中") -> 0 | Q50: =IF(DAY(O48)=1,IF(OR(Q49="育休中",Q49="出勤"),1,0),0) ->  | R50: =COUNTIF(R18:R49,">0") -> 30 | S50: =COUNTIF(S18:S49,"育休中") -> 0 | T50: =IF(DAY(R48)=1,IF(OR(T49="育休中",T49="出勤"),1,0),0) ->  | U50: 育休日数 | V50: =D50+G50+J50+M50+P50+S50 -> 0
E51: =IF(C50=D50,0,IFERROR(E50,0)) -> 0 | H51: =IF(F50=G50,0,IFERROR(H50,0)) -> 0 | K51: =IF(I50=J50,0,IFERROR(K50,0)) -> 0 | N51: =IF(L50=M50,0,IFERROR(N50,0)) -> 0 | Q51: =IF(O50=P50,0,IFERROR(Q50,0)) -> 0 | T51: =IF(R50=S50,0,IFERROR(T50,0)) -> 0
D53: 勤務月換算 | E53: =IF(H14=6,0,6-M14-IF(W9>0,1,0)) -> 6 | G53: ↓月数×100 | H53: 計算上の値 | J53: =IF((DAY($D$3)=DAY(EDATE($D$3,1)))=TRUE,EDATE($D$3,1)-1,EDATE($D$3,1)) -> 2024-01-26
D54: 勤務日換算 | E54: =IF(W9=0,0,IF(E53=6,0,IF(H14=6,0,30-W9)))+E56 -> 0 | G54: =E53*100 -> 600 | H54: =G54+E55+E54 -> 600 | J54: =D4-J53 -> -10
D55: (5月30日の場合の調整値) | E55: =IF(AND(M14=5,W9=30),1,0) -> 0
D56: (月間31日で休業日数30日の場合の調整値) | E56: =SUM(E51:T51) -> 0
H58: （Ａ）の値 | I58: （左記数値を下記数値に置換） | J58: （勤務日が０の場合1で返す） | K58: （置換後） | L58: 日数足し上げ | P58: 0 | Q58: 0 | R58: 0 | S58: 0 | T58: 0 | V58: =VLOOKUP(H54,P58:T71,5,TRUE) -> 1
D59: ① | F59: ② | H59: 0 | I59: 0 | J59: =IF(AND(K$59=I59,$F$61=0),1,0) -> 0 | K59: =VLOOKUP(F60,H59:I71,2,TRUE) -> 600 | L59: =IF(SUM(J59:J71)=1,K59,IF(F61=0,(K59+F61)-70,K59+F61)) -> 600 | P59: 1 | Q59: 15日未満 | R59: 0 | S59: 15 | T59: 0.05
C60: 1/2除算後の休業月数 | D60: =IF(H14=6,3,M14/2) -> 0 | E60: 勤務月数換算（Ａ） | F60: =IF(F61>0,6-D60-1,6-D60) -> 6 | H60: 0.5 | I60: 85 | P60: 15 | Q60: 15日以上1月未満 | R60: 1 | S60: 0 | T60: 0.1 | V60: （数値処理後）期間率
C61: 1/2除算後の休業日数 | D61: =W9/2 -> 0 | E61: 勤務日数換算（Ｂ） | F61: =IF(D61=0,0,30-D61) -> 0 | H61: 1 | I61: 100 | J61: =IF(AND(K$59=I61,$F$61=0),1,0) -> 0 | P61: 100 | Q61: 1月以上1月15日未満 | R61: 1 | S61: 15 | T61: 0.15 | V61: =IF(J54=0,T71,IF(E53=5,T71,V58)) -> 1
H62: 1.5 | I62: 185 | K62: （係数） | P62: 115 | Q62: 1月15日以上2月未満 | R62: 2 | S62: 0 | T62: 0.2
H63: 2 | I63: 200 | J63: 0 | K63: 230 | L63: ②3か月以上5か月未満 | M63: 3 | N63: 0.6 | P63: 200 | Q63: 2月以上2月15日未満 | R63: 2 | S63: 15 | T63: 0.3
D64: ③ | F64: ④ | H64: 2.5 | I64: 285 | K64: 430 | L64: ③5か月以上6か月未満 | M64: 5 | N64: 0.8 | P64: 215 | Q64: 2月15日以上3月未満 | R64: 3 | S64: 0 | T64: 0.4
C65: 月数の小数点以下を補正 | D65: =INT(MOD(SIGN(L59)*L59/100,10)) -> 6 | E65: （数値処理後）勤務月数 | F65: =IF(V49=0,3,IF(AND(F60=6,F61=0),F60,D65)) -> 6 | H65: 3 | I65: 300 | J65: 0 | K65: 530 | L65: ④6か月 | M65: 6 | N65: 1 | P65: 300 | Q65: 3月以上3月15日未満 | R65: 3 | S65: 15 | T65: 0.5
D66: =L59-D65*100 -> 0 | E66: （数値処理後）勤務日数 | F66: =IF(V49=0,0,IF(AND(F60=6,F61=0),F61,D66)) -> 0 | H66: 3.5 | I66: 385 | P66: 315 | Q66: 3月15日以上4月未満 | R66: 4 | S66: 0 | T66: 0.6
H67: 4 | I67: 400 | J67: 0 | L67: 判定 | P67: 400 | Q67: 4月以上4月15日未満 | R67: 4 | S67: 15 | T67: 0.7
H68: 4.5 | I68: 485 | L68: =VLOOKUP(L59,K63:N65,4,TRUE) -> 1 | P68: 415 | Q68: 4月15日以上5月未満 | R68: 5 | S68: 0 | T68: 0.8
H69: 5 | I69: 500 | J69: 0 | L69: （数値処理後）在職期間別割合 | P69: 500 | Q69: 5月以上5月15日未満 | R69: 5 | S69: 15 | T69: 0.9
H70: 5.5 | I70: 585 | L70: =IF(J54=0,N65,IF(H14=6,0,IF(E53=5,N65,L68))) -> 1 | P70: 515 | Q70: 5月15日以上6月未満 | R70: 5 | S70: 31 | T70: 0.95
H71: 6 | I71: 600 | J71: 1 | P71: 600 | Q71: 6か月 | R71: 6 | S71: 0 | T71: 1
